Workbook

Sheet STEP 1--Field Information
A1: In the yellow cells below, enter descriptive information about a field. You can obtain calculations that are based on: acres, OR length and width of beds, OR total square footage of growing area.
D4: Farm Name:
F5: Acres:
D6: Field name :
A8: Select crop planned from dropdown menu. (If mixed field, select "Mixed Vegetables"): | E8: Mixed Vegetable
A10: Select previous cover crop on field from dropdown menu. If none, select "No Cover Crop". | E10: No Cover Crop
A12: SIZE OF YOUR FIELD, BEDS, OR GROWING AREA:
A13: Enter the number of acres: | E13: 1 | F13: =E13 -> 1
A14: OR
A15: Enter bed width (in feet):
B16: AND
B17: Enter bed length (in feet):
C18: AND
C19: Number of beds
A20: OR | F20: =(E15*E17*E19)/43560 -> 0
A21: Enter total square feet of growing area: | F21: =E21/43560 -> 0
F23: =F13+F21+F20 -> 1
A25: Blueberries - Establishment | C25: Alsike clover
A26: Blueberries - Maintenance | C26: Berseem clover
A27: Raspberries/Brambles -Establishment | C27: Buckwhat
A28: Raspberries/Brambles - Maintenance | C28: Field Peas
A29: Strawberries - Establishment | C29: Hairy vetch, mid summer incorp
A30: Strawberries - Maintenance | C30: Hairy vetch, spring incorp
A31: Mixed Vegetable | C31: Oat, leonard
A32: Asparagus - Establishment | C32: Other
A33: Asparagus - Maintenance | C33: Red clover, spring incorp
A34: Basil | C34: Red clover, mid summer incorp
A35: Beans: Dry/Snap/Lima | C35: Rye
A36: Beets, Swiss Chard | C36: Sudan grass
A37: Broccoli | C37: Sweet clover
A38: Cabbage, Cauliflower | C38: No Cover Crop
A39: Carrots, Parsnips
A40: Celery
A41: Collards
A42: Cucumbers, Melons
A43: Eggplant
A44: Garlic
A45: Leafy Greens
A46: Lettuce
A47: Muskmelon
A48: Okra
A49: Onions, Leeks
A50: Ornamental Corn
A51: Ornamental Gourds
A52: Peas
A53: Peppers
A54: Potatoes
A55: Pumpkins
A56: Radishes
A57: Rhubarb - Establishment
A58: Rhubarb - Maintenance
A59: Spinach
A60: Sweet Potato
A61: Squash
A62: Sweet Corn, Early
A63: Sweet Corn, Full Season
A64: Tomatoes
A65: Rutabagas, Turnips
A66: Watermelon
A67: Other

Sheet STEP 2--Soil Test Information
A1: Instructions: Enter the information from your soil test results in the yellow cells. Select P and K levels from drop down menus. Only enter information from a soil test lab that uses the modified Morgan's extract (UVM, UMass, UMaine, Dairy One in NY)
A3: Field Name | B3: ='STEP 1--Field Information'!E6 -> 0
A4: pH
A5: Phosphorus (enter ppm P--if your results are in lbs/acre, divide that number by 2 for ppm)
A6: Potasssium (enter ppm K--if your results are in lbs/acre, divide that number by 2 for ppm)
A7: Calcium (Ca)
A8: Magnesium (Mg)
A9: Sulfur (S)
A11: Micronutrients (Modified Morgan ppm)
A12: Iron (Fe)
A13: Manganese (Mn)
A14: Boron (B)
A15: Copper (Cu)
A16: Zinc (Zn)
A17: Sodium (Na)
A18: Aluminum (Al)
A20: % Soil Organic Matter | C20: %
A21: Lime recommendation from soil test (enter number of tons per acre; if in pounds per 1000 square feet, divide that number by 435) | C21: tons
A22: Nitrogen
A23: Phosphate
A24: Potash
A31: Under 2 ppm | B31: Under 25 ppm
A32: 2-3 ppm | B32: 25-49 ppm
A33: 3-4 ppm | B33: 50-74 ppm
A34: 4-6 ppm | B34: 75-99 ppm
A35: 7-9 ppm | B35: 100-129 ppm
A36: 10-13 ppm | B36: 130-159 ppm
A37: 14-17 ppm | B37: 160-189 ppm
A38: 18-20 ppm | B38: 190 ppm or more
A39: Over 20 ppm

Sheet Veg rec lookup (hidden)
A1: Crop | B1: Under 2 ppm | C1: 2-3 ppm | D1: 3-4 ppm | E1: 4-6 ppm | F1: 7-9 ppm | G1: 10-13 ppm | H1: 14-17 ppm | I1: 18-20 ppm | J1: Over 20 ppm
A2: Blueberries - Establishment | B2: 60 | C2: 40 | D2: 20 | E2: 20 | F2: 0 | G2: 0 | H2: 0 | I2: 0 | J2: 0
A3: Blueberries - Maintenance | B3: 50 | C3: 30 | D3: 20 | E3: 0 | F3: 0 | G3: 0 | H3: 0 | I3: 0 | J3: 0
A4: Cranberries - Establishment
A5: Cranberries - Maintenance
A6: Hops - Establishment | B6: 120 | C6: 100 | D6: 80 | E6: 60 | F6: 30 | G6: 0 | H6: 0 | I6: 0 | J6: 0
A7: Hops - Maintenance | B7: 100 | C7: 80 | D7: 60 | E7: 40 | F7: 20 | G7: 0 | H7: 0 | I7: 0 | J7: 0
A8: Raspberries/Brambles -Establishment | B8: 150 | C8: 120 | D8: 90 | E8: 40 | F8: 20 | G8: 0 | H8: 0 | I8: 0 | J8: 0
A9: Raspberries/Brambles - Maintenance | B9: 120 | C9: 90 | D9: 60 | E9: 20 | F9: 20 | G9: 0 | H9: 0 | I9: 0 | J9: 0
A10: Strawberries - Establishment | B10: 125 | C10: 100 | D10: 75 | E10: 50 | F10: 25 | G10: 0 | H10: 0 | I10: 0 | J10: 0
A11: Strawberries - Maintenance | B11: 100 | C11: 75 | D11: 50 | E11: 25 | F11: 25 | G11: 0 | H11: 0 | I11: 0 | J11: 0
A12: Home Vegetable (mixed) | B12: 0.5 | C12: 0.25 | D12: 0.25 | E12: 0.2 | F12: 0.1 | G12: 0 | H12: 0 | I12: 0 | J12: 0
A13: Home Blueberries-Establishment | B13: 0.25 | C13: 0.2 | D13: 0.1 | E13: 0.1 | F13: 0 | G13: 0 | H13: 0 | I13: 0 | J13: 0
A14: Home Blueberries-Maintenance | B14: 0.2 | C14: 0.1 | D14: 0.1 | E14: 0 | F14: 0 | G14: 0 | H14: 0 | I14: 0 | J14: 0
A15: Home Brambles-Establishment | B15: 0.5 | C15: 0.3 | D15: 0.25 | E15: 0.2 | F15: 0.1 | G15: 0 | H15: 0 | I15: 0 | J15: 0
A16: Home Brambles-Maintenance | B16: 0.3 | C16: 0.25 | D16: 0.15 | E16: 0.1 | F16: 0.1 | G16: 0 | H16: 0 | I16: 0 | J16: 0
A17: Home Strawberries-Establishment | B17: 0.5 | C17: 0.3 | D17: 0.25 | E17: 0.2 | F17: 0.1 | G17: 0 | H17: 0 | I17: 0 | J17: 0
A18: Home Strawberries-Maintenance | B18: 0.3 | C18: 0.25 | D18: 0.15 | E18: 0.1 | F18: 0.1 | G18: 0 | H18: 0 | I18: 0 | J18: 0
A19: Mixed vegetable | B19: 200 | C19: 100 | D19: 100 | E19: 80 | F19: 40 | G19: 0 | H19: 0 | I19: 0 | J19: 0
A20: Asparagus - Establishment | B20: 180 | C20: 150 | D20: 120 | E20: 60 | F20: 30 | G20: 30 | H20: 0 | I20: 0 | J20: 0
A21: Asparagus - Maintenance | B21: 150 | C21: 120 | D21: 90 | E21: 60 | F21: 30 | G21: 30 | H21: 0 | I21: 0 | J21: 0
A22: Basil | B22: 120 | C22: 90 | D22: 60 | E22: 45 | F22: 30 | G22: 30 | H22: 0 | I22: 0 | J22: 0
A23: Beans: Dry/Snap/Lima | B23: 100 | C23: 75 | D23: 75 | E23: 50 | F23: 25 | G23: 0 | H23: 0 | I23: 0 | J23: 0
A24: Beets, Swiss Chard | B24: 150 | C24: 125 | D24: 100 | E24: 50 | F24: 50 | G24: 25 | H24: 0 | I24: 0 | J24: 0
A25: Broccoli | B25: 150 | C25: 125 | D25: 100 | E25: 50 | F25: 50 | G25: 25 | H25: 0 | I25: 0 | J25: 0
A26: Cabbage, Cauliflower | B26: 150 | C26: 125 | D26: 100 | E26: 50 | F26: 50 | G26: 25 | H26: 0 | I26: 0 | J26: 0
A27: Carrots, Parsnips | B27: 150 | C27: 125 | D27: 100 | E27: 50 | F27: 50 | G27: 25 | H27: 0 | I27: 0 | J27: 0
A28: Celery | B28: 180 | C28: 150 | D28: 120 | E28: 60 | F28: 30 | G28: 30 | H28: 0 | I28: 0 | J28: 0
A29: Collards | B29: 150 | C29: 125 | D29: 100 | E29: 50 | F29: 50 | G29: 25 | H29: 0 | I29: 0 | J29: 0
A30: Cucumbers, Melons | B30: 150 | C30: 125 | D30: 100 | E30: 50 | F30: 50 | G30: 25 | H30: 0 | I30: 0 | J30: 0
A31: Eggplant | B31: 150 | C31: 125 | D31: 100 | E31: 50 | F31: 50 | G31: 25 | H31: 0 | I31: 0 | J31: 0
A32: Garlic | B32: 150 | C32: 125 | D32: 100 | E32: 50 | F32: 50 | G32: 25 | H32: 0 | I32: 0 | J32: 0
A33: Leafy Greens | B33: 180 | C33: 150 | D33: 120 | E33: 60 | F33: 30 | G33: 30 | H33: 0 | I33: 0 | J33: 0
A34: Lettuce | B34: 180 | C34: 150 | D34: 120 | E34: 60 | F34: 30 | G34: 30 | H34: 0 | I34: 0 | J34: 0
A35: Muskmelon | B35: 150 | C35: 125 | D35: 100 | E35: 50 | F35: 50 | G35: 25 | H35: 0 | I35: 0 | J35: 0
A36: Okra | B36: 150 | C36: 125 | D36: 100 | E36: 50 | F36: 25 | G36: 25 | H36: 0 | I36: 0 | J36: 0
A37: Onions, Leeks | B37: 150 | C37: 125 | D37: 100 | E37: 50 | F37: 25 | G37: 25 | H37: 0 | I37: 0 | J37: 0
A38: Ornamental Corn | B38: 140 | C38: 110 | D38: 80 | E38: 40 | F38: 30 | G38: 20 | H38: 0 | I38: 0 | J38: 0
A39: Ornamental Gourds | B39: 150 | C39: 125 | D39: 100 | E39: 50 | F39: 50 | G39: 25 | H39: 0 | I39: 0 | J39: 0
A40: Peas | B40: 150 | C40: 125 | D40: 100 | E40: 50 | F40: 50 | G40: 25 | H40: 0 | I40: 0 | J40: 0
A41: Peppers | B41: 150 | C41: 125 | D41: 100 | E41: 50 | F41: 25 | G41: 25 | H41: 0 | I41: 0 | J41: 0
A42: Potatoes | B42: 200 | C42: 160 | D42: 120 | E42: 90 | F42: 60 | G42: 30 | H42: 0 | I42: 0 | J42: 0
A43: Pumpkins | B43: 150 | C43: 125 | D43: 100 | E43: 50 | F43: 25 | G43: 25 | H43: 0 | I43: 0 | J43: 0
A44: Radishes | B44: 150 | C44: 125 | D44: 100 | E44: 50 | F44: 25 | G44: 25 | H44: 0 | I44: 0 | J44: 0
A45: Rhubarb - Establishment | B45: 200 | C45: 150 | D45: 125 | E45: 75 | F45: 50 | G45: 25 | H45: 0 | I45: 0 | J45: 0
A46: Rhubarb - Maintenance | B46: 150 | C46: 125 | D46: 100 | E46: 50 | F46: 25 | G46: 25 | H46: 0 | I46: 0 | J46: 0
A47: Spinach | B47: 180 | C47: 150 | D47: 120 | E47: 60 | F47: 30 | G47: 30 | H47: 0 | I47: 0 | J47: 0
A48: Sweet Potato | B48: 300 | C48: 250 | D48: 200 | E48: 100 | F48: 50 | G48: 30 | H48: 0 | I48: 0 | J48: 0
A49: Squash | B49: 150 | C49: 125 | D49: 100 | E49: 50 | F49: 50 | G49: 25 | H49: 0 | I49: 0 | J49: 0
A50: Sweet Corn, Early | B50: 140 | C50: 110 | D50: 80 | E50: 40 | F50: 30 | G50: 20 | H50: 0 | I50: 0 | J50: 0
A51: Sweet Corn, Full Season | B51: 140 | C51: 110 | D51: 80 | E51: 40 | F51: 30 | G51: 20 | H51: 0 | I51: 0 | J51: 0
A52: Tomatoes | B52: 180 | C52: 150 | D52: 120 | E52: 60 | F52: 30 | G52: 30 | H52: 0 | I52: 0 | J52: 0
A53: Rutabagas, Turnips | B53: 180 | C53: 150 | D53: 120 | E53: 60 | F53: 30 | G53: 30 | H53: 0 | I53: 0 | J53: 0
A54: Watermelon | B54: 150 | C54: 125 | D54: 100 | E54: 50 | F54: 50 | G54: 25 | H54: 0 | I54: 0 | J54: 0
A55: Other | B55: 200 | C55: 100 | D55: 100 | E55: 80 | F55: 40 | G55: 0 | H55: 0 | I55: 0 | J55: 0
A57: K
A58: Crop | B58: Under 25 ppm | C58: 25-49 ppm | D58: 50-74 ppm | E58: 75-99 ppm | F58: 100-129 ppm | G58: 130-159 ppm | H58: 160-189 ppm | I58: 190 ppm or more
A59: Blueberries - Establishment | B59: 125 | C59: 125 | D59: 100 | E59: 75 | F59: 25 | G59: 0 | H59: 0 | I59: 0
A60: Blueberries - Maintenance | B60: 100 | C60: 100 | D60: 75 | E60: 50 | F60: 25 | G60: 0 | H60: 0 | I60: 0
A61: Cranberries - Establishment
A62: Cranberries - Maintenance
A63: Hops - Establishment | B63: 150 | C63: 150 | D63: 100 | E63: 80 | F63: 60 | G63: 40 | H63: 0 | I63: 0
A64: Hops - Maintenance | B64: 150 | C64: 150 | D64: 100 | E64: 80 | F64: 60 | G64: 40 | H64: 0 | I64: 0
A65: Raspberries/Brambles -Establishment | B65: 200 | C65: 200 | D65: 150 | E65: 100 | F65: 75 | G65: 50 | H65: 0 | I65: 0
A66: Raspberries/Brambles - Maintenance | B66: 175 | C66: 175 | D66: 125 | E66: 100 | F66: 75 | G66: 50 | H66: 0 | I66: 0
A67: Strawberries - Establishment | B67: 125 | C67: 125 | D67: 100 | E67: 75 | F67: 50 | G67: 25 | H67: 0 | I67: 0
A68: Strawberries - Maintenance | B68: 125 | C68: 125 | D68: 100 | E68: 75 | F68: 50 | G68: 25 | H68: 0 | I68: 0
A69: Home Vegetable (mixed) | B69: 0.5 | C69: 0.5 | D69: 0.25 | E69: 0.25 | F69: 0.1 | G69: 0.1 | H69: 0 | I69: 0
A70: Home Blueberries-Establishment | B70: 0.3 | C70: 0.3 | D70: 0.25 | E70: 0.2 | F70: 0.1
A71: Home Blueberries-Maintenance | B71: 0.25 | C71: 0.25 | D71: 0.2 | E71: 0.1 | F71: 0.1
A72: Home Brambles-Establishment | B72: 0.5 | C72: 0.5 | D72: 0.5 | E72: 0.25 | F72: 0.25 | G72: 0.1 | H72: 0 | I72: 0
A73: Home Brambles-Maintenance | B73: 0.5 | C73: 0.5 | D73: 0.5 | E73: 0.25 | F73: 0.25 | G73: 0.1 | H73: 0 | I73: 0
A74: Home Strawberries-Establishment | B74: 0.5 | C74: 0.5 | D74: 0.5 | E74: 0.25 | F74: 0.25 | G74: 0.1 | H74: 0 | I74: 0
A75: Home Strawberries-Maintenance | B75: 0.5 | C75: 0.5 | D75: 0.5 | E75: 0.25 | F75: 0.25 | G75: 0.1 | H75: 0 | I75: 0
A76: Mixed vegetable | B76: 200 | C76: 200 | D76: 100 | E76: 100 | F76: 40 | G76: 40 | H76: 0 | I76: 0
A77: Asparagus - Establishment | B77: 200 | C77: 175 | D77: 150 | E77: 150 | F77: 75 | G77: 50 | H77: 0 | I77: 0
A78: Asparagus - Maintenance | B78: 300 | C78: 200 | D78: 175 | E78: 150 | F78: 100 | G78: 75 | H78: 0 | I78: 0
A79: Basil | B79: 100 | C79: 100 | D79: 75 | E79: 75 | F79: 50 | G79: 25
A80: Beans: Dry/Snap/Lima | B80: 100 | C80: 100 | D80: 75 | E80: 75 | F80: 50 | G80: 25 | H80: 0 | I80: 0
A81: Beets, Swiss Chard | B81: 300 | C81: 200 | D81: 175 | E81: 150 | F81: 100 | G81: 75 | H81: 0 | I81: 0
A82: Broccoli | B82: 175 | C82: 175 | D82: 150 | E82: 150 | F82: 75 | G82: 50 | H82: 0 | I82: 0
A83: Cabbage, Cauliflower | B83: 175 | C83: 175 | D83: 150 | E83: 150 | F83: 75 | G83: 50 | H83: 0 | I83: 0
A84: Carrots, Parsnips | B84: 300 | C84: 200 | D84: 175 | E84: 150 | F84: 100 | G84: 75 | H84: 0 | I84: 0
A85: Celery | B85: 300 | C85: 200 | D85: 175 | E85: 150 | F85: 100 | G85: 75 | H85: 0 | I85: 0
A86: Collards | B86: 175 | C86: 175 | D86: 150 | E86: 150 | F86: 75 | G86: 50 | H86: 0 | I86: 0
A87: Cucumbers, Melons | B87: 180 | C87: 140 | D87: 120 | E87: 100 | F87: 70 | G87: 30 | H87: 0 | I87: 0
A88: Eggplant | B88: 150 | C88: 125 | D88: 100 | E88: 75 | F88: 50 | G88: 50 | H88: 0 | I88: 0
A89: Garlic | B89: 150 | C89: 125 | D89: 100 | E89: 75 | F89: 50 | G89: 50 | H89: 0 | I89: 0
A90: Leafy Greens | B90: 180 | C90: 140 | D90: 120 | E90: 100 | F90: 60 | G90: 30 | H90: 0 | I90: 0
A91: Lettuce | B91: 180 | C91: 140 | D91: 120 | E91: 100 | F91: 60 | G91: 30 | H91: 0 | I91: 0
A92: Muskmelon | B92: 180 | C92: 140 | D92: 120 | E92: 100 | F92: 60 | G92: 30 | H92: 0 | I92: 0
A93: Okra
A94: Onions, Leeks | B94: 175 | C94: 175 | D94: 150 | E94: 150 | F94: 75 | G94: 50 | H94: 0 | I94: 0
A95: Ornamental Corn | B95: 180 | C95: 140 | D95: 120 | E95: 100 | F95: 80 | G95: 40 | H95: 0 | I95: 0
A96: Ornamental Gourds | B96: 180 | C96: 140 | D96: 120 | E96: 100 | F96: 80 | G96: 40 | H96: 0 | I96: 0
A97: Peas | B97: 150 | C97: 125 | D97: 100 | E97: 75 | F97: 50 | G97: 50 | H97: 0 | I97: 0
A98: Peppers | B98: 200 | C98: 175 | D98: 150 | E98: 100 | F98: 50 | G98: 50 | H98: 0 | I98: 0
A99: Potatoes | B99: 300 | C99: 200 | D99: 175 | E99: 150 | F99: 100 | G99: 75 | H99: 0 | I99: 0
A100: Pumpkins | B100: 200 | C100: 175 | D100: 150 | E100: 100 | F100: 80 | G100: 40 | H100: 0 | I100: 0
A101: Radishes | B101: 125 | C101: 125 | D101: 100 | E101: 100 | F101: 50 | G101: 50 | H101: 0 | I101: 0
A102: Rhubarb - Establishment | B102: 200 | C102: 150 | D102: 125 | E102: 75 | F102: 50 | G102: 25 | H102: 0 | I102: 0
A103: Rhubarb - Maintenance | B103: 200 | C103: 200 | D103: 175 | E103: 150 | F103: 100 | G103: 50 | H103: 0 | I103: 0
A104: Spinach | B104: 180 | C104: 140 | D104: 120 | E104: 100 | F104: 60 | G104: 30 | H104: 0 | I104: 0
A105: Sweet Potato | B105: 300 | C105: 250 | D105: 200 | E105: 150 | F105: 100 | G105: 50 | H105: 0 | I105: 0
A106: Squash | B106: 200 | C106: 175 | D106: 150 | E106: 100 | F106: 80 | G106: 40 | H106: 0 | I106: 0
A107: Sweet Corn, Early | B107: 180 | C107: 140 | D107: 120 | E107: 100 | F107: 80 | G107: 40 | H107: 0 | I107: 0
A108: Sweet Corn, Full Season | B108: 180 | C108: 140 | D108: 120 | E108: 100 | F108: 80 | G108: 40 | H108: 0 | I108: 0
A109: Tomatoes | B109: 250 | C109: 200 | D109: 150 | E109: 125 | F109: 100 | G109: 50 | H109: 0 | I109: 0
A110: Rutabagas, Turnips | B110: 100 | C110: 100 | D110: 75 | E110: 50 | F110: 25 | G110: 25 | H110: 0 | I110: 0
A111: Watermelon | B111: 180 | C111: 140 | D111: 120 | E111: 100 | F111: 70 | G111: 30 | H111: 0 | I111: 0
A112: Other | B112: 200 | C112: 200 | D112: 100 | E112: 100 | F112: 40 | G112: 40 | H112: 0 | I112: 0

Sheet STEP 3--Nutrient Needs
A1: Instructions: In the yellow highlighted areas, enter the necessary information. All shaded areas will autofill, but you can overwrite those numbers if you choose. Leave blank whatever you don't know or is not applicable. (If your soil test results are reported in 1000 square feet, multiply the recommendations by 43.5 to convert to pounds per acre)
B2: ENTER YOUR VALUES IN YELLOW SQUARES: | C2: N | D2: P2O5 | E2: K2O
A3: Nitrogen recommendations (lbs/ acre) | B3: =VLOOKUP('STEP 1--Field Information'!E8,'Crop look up'!A2:B44,2,FALSE) -> 100 | C3: =B3 -> 100
A4: Phosphate recommendations (lbs/acre) | B4: =VLOOKUP('STEP 1--Field Information'!E8,'Veg rec lookup'!A1:J55, MATCH('STEP 2--Soil Test Information'!B5,'Veg rec lookup'!A1:J1,0), FALSE) ->  | D4: =B4 -> 
A5: Potash recommendations (lbs/acre) | B5: =VLOOKUP('STEP 1--Field Information'!E8,'Veg rec lookup'!A58:I112,MATCH('STEP 2--Soil Test Information'!B6,'Veg rec lookup'!A58:I58,0), FALSE) ->  | E5: =B5 -> 
A6: % soil organic matter | B6: ='STEP 2--Soil Test Information'!B20 -> 0 | C6: =MIN(40,B6*10) -> 0
A7: Cover crop contributions (lbs N per acre)-- | B7: ='STEP 1--Field Information'!E10 -> No Cover Crop | C7: =VLOOKUP('STEP 1--Field Information'!E10,'Crop look up'!D16:E29,2,FALSE) -> 0
A8: Manure contributions--Enter tons of manure applied per acre* (read below) | C8: =B8*0.6 -> 0 | D8: =B8*0.24 -> 0 | E8: =B8*0.9 -> 0
A9: Compost contributions--Enter yards compost applied per acre | C9: =B9*0.75 -> 0 | D9: =B9*(0.375*0.8) -> 0 | E9: =B9*(0.375*6) -> 0
A10: Sod contribution--(Enter a "1" in the cell to the right if in sod last season) | B10: 0 | C10: =B10*30 -> 0
A11: Total Nutrients Needed (lbs/Acre) | C11: =C3-SUM(C6:C10) -> 100 | D11: =MAX(D4-D8-D9,0) ->  | E11: =MAX(E5-E8-E9,0) -> 

Sheet Crop look up (hidden)
B1: N
A2: Blueberries - Establishment | B2: 0 | D2: Rye | E2: 25
A3: Blueberries - Maintenance | B3: 10 | D3: Oat, leonard | E3: 10
A4: Raspberries/Brambles -Establishment | B4: 0 | D4: Hairy vetch, spring incorp | E4: 50
A5: Raspberries/Brambles - Maintenance | B5: 75 | D5: Hairy vetch, mid summer incorp | E5: 80
A6: Strawberries - Establishment | B6: 50 | D6: Red clover, spring incorp | E6: 50
A7: Strawberries - Maintenance | B7: 50 | D7: Red clover, mid summer incorp | E7: =AVERAGE(70,150) -> 110
A8: Mixed Vegetable | B8: 100 | D8: Alsike clover | E8: =90 -> 90
A9: Asparagus - Establishment | B9: 50 | D9: Sweetclover | E9: 100
A10: Asparagus - Maintenance | B10: 50 | D10: Sudangrass | E10: 25
A11: Basil | B11: 100 | D11: Field Peas | E11: =AVERAGE(90,150) -> 120
A12: Beans: Dry/Snap/Lima | B12: 70 | D12: buckwheat | E12: 10
A13: Beets, Swiss Chard | B13: 100 | D13: Berseem clover | E13: 150
A14: Broccoli | B14: 100 | D14: other | E14: Enter estimated N In Cell to Right->
A15: Cabbage, Cauliflower | B15: 100
A16: Carrots, Parsnips | B16: 100 | D16: Alsike clover | E16: 90
A17: Celery | B17: 100 | D17: Berseem clover | E17: 150
A18: Collards | B18: 100 | D18: Buckwhat | E18: 10
A19: Cucumbers, Melons | B19: 100 | D19: Field Peas | E19: 120
A20: Eggplant | B20: 100 | D20: Hairy vetch, mid summer incorp | E20: 80
A21: Garlic | B21: 120 | D21: Hairy vetch, spring incorp | E21: 50
A22: Leafy Greens | B22: 70 | D22: Oat, leonard | E22: 10
A23: Lettuce | B23: 70 | D23: Other | E23: Enter estimated N in Cell to Right->
A24: Muskmelon | B24: 100 | D24: Red clover, spring incorp | E24: 50
A25: Okra | B25: 100 | D25: Red clover, mid summer incorp | E25: 110
A26: Onions, Leeks | B26: 100 | D26: Rye | E26: 25
A27: Ornamental Corn | B27: 100 | D27: Sudan grass | E27: 25
A28: Ornamental Gourds | B28: 100 | D28: Sweet clover | E28: 100
A29: Peas | B29: 70 | D29: No cover crop | E29: 0
A30: Peppers | B30: 100
A31: Potatoes | B31: 120
A32: Pumpkins | B32: 100
A33: Radishes | B33: 50
A34: Rhubarb - Establishment | B34: 50
A35: Rhubarb - Maintenance | B35: 50
A36: Spinach | B36: 100
A37: Sweet Potato | B37: 50
A38: Squash | B38: 100
A39: Sweet Corn, Early | B39: 100
A40: Sweet Corn, Full Season | B40: 100
A41: Tomatoes | B41: 100
A42: Rutabagas, Turnips | B42: 50
A43: Watermelon | B43: 100
A44: Other | B44: 100

Sheet STEP 4--Choose N
A1: Instructions: Select your nitrogen amendment from the drop down menu in the yellow cell after reviewing the chart below. If you have a custom blend or a product with a unique analysis, enter the analysis at the bottom of the chart to the right of "other".
A2: Select Your Nitrogen Amendment---->
A3: Based on your nutrient calculations, you should apply | C3: ='STEP 3--Nutrient Needs'!C11 -> 100 | D3: lbs N/ acre
A5: POSSIBLE NITROGEN AMENDMENTS
A6: AMENDMENT NAME | B6: ='Appendix--Fertilizer Costs'!B1 -> % N | C6: ='Appendix--Fertilizer Costs'!C1 -> % P2O5 | D6: ='Appendix--Fertilizer Costs'!D1 -> % K20 | E6: ='Appendix--Fertilizer Costs'!E1 -> % Ca | F6: ='Appendix--Fertilizer Costs'!F1 -> % Mg | G6: ='Appendix--Fertilizer Costs'!G1 -> % S | H6: ='Appendix--Fertilizer Costs'!H1 -> Release Rate | I6: ='Appendix--Fertilizer Costs'!I1 -> Price per 50 lb | J6: ='Appendix--Fertilizer Costs'!J1 -> $/lb N
A7: ='N lookup'!A2 -> Alfalfa meal | B7: ='N lookup'!B2 -> 0.03 | C7: ='N lookup'!C2 -> 0.005 | D7: ='N lookup'!D2 -> 0.025 | E7: ='N lookup'!E2 -> 0 | F7: ='N lookup'!F2 -> 0 | G7: ='N lookup'!G2 -> 0 | H7: ='N lookup'!H2 -> slow/ med | I7: ='N lookup'!I2 -> 30 | J7: ='N lookup'!J2 -> 20
A8: ='N lookup'!A3 -> Ammonium sulfate | B8: ='N lookup'!B3 -> 0.21 | C8: ='N lookup'!C3 -> 0 | D8: ='N lookup'!D3 -> 0 | E8: ='N lookup'!E3 -> 0 | F8: ='N lookup'!F3 -> 0 | G8: ='N lookup'!G3 -> 0.23 | H8: ='N lookup'!H3 -> rapid | I8: ='N lookup'!I3 -> 10.7 | J8: ='N lookup'!J3 -> 1.019047619
A9: ='N lookup'!A4 -> Blood meal | B9: ='N lookup'!B4 -> 0.12 | C9: ='N lookup'!C4 -> 0.01 | D9: ='N lookup'!D4 -> 0.005 | E9: ='N lookup'!E4 -> 0 | F9: ='N lookup'!F4 -> 0 | G9: ='N lookup'!G4 -> 0 | H9: ='N lookup'!H4 -> med/ rapid | I9: ='N lookup'!I4 -> 68 | J9: ='N lookup'!J4 -> 11.33333333
A10: ='N lookup'!A5 -> Bone meal | B10: ='N lookup'!B5 -> 0.03 | C10: ='N lookup'!C5 -> 0.2 | D10: ='N lookup'!D5 -> 0 | E10: ='N lookup'!E5 -> 0 | F10: ='N lookup'!F5 -> 0 | G10: ='N lookup'!G5 -> 0 | H10: ='N lookup'!H5 -> med | I10: ='N lookup'!I5 -> 39 | J10: ='N lookup'!J5 -> 26
A11: ='N lookup'!A6 -> Calcium nitrate | B11: ='N lookup'!B6 -> 0.15 | C11: ='N lookup'!C6 -> 0 | D11: ='N lookup'!D6 -> 0 | E11: ='N lookup'!E6 -> 0.19 | F11: ='N lookup'!F6 -> 0 | G11: ='N lookup'!G6 -> 0 | H11: ='N lookup'!H6 -> rapid | I11: ='N lookup'!I6 -> 21.85 | J11: ='N lookup'!J6 -> 2.913333333
A12: ='N lookup'!A7 -> Chilean nitrate | B12: ='N lookup'!B7 -> 0.15 | C12: ='N lookup'!C7 -> 0 | D12: ='N lookup'!D7 -> 0.02 | E12: ='N lookup'!E7 -> 0 | F12: ='N lookup'!F7 -> 0 | G12: ='N lookup'!G7 -> 0 | H12: ='N lookup'!H7 -> rapid | I12: ='N lookup'!I7 -> 45 | J12: ='N lookup'!J7 -> 6
A13: ='N lookup'!A8 -> Dehydrated Poultry Manure (Kreher's or other) | B13: ='N lookup'!B8 -> 0.05 | C13: ='N lookup'!C8 -> 0.04 | D13: ='N lookup'!D8 -> 0.03 | E13: ='N lookup'!E8 -> 0.09 | F13: ='N lookup'!F8 -> 0 | G13: ='N lookup'!G8 -> 0 | H13: ='N lookup'!H8 -> med | I13: ='N lookup'!I8 -> 15 | J13: ='N lookup'!J8 -> 6
A14: ='N lookup'!A9 -> Dehydrated High-K Blend Poultry Manure (Kreher's or other) | B14: ='N lookup'!B9 -> 0.04 | C14: ='N lookup'!C9 -> 0.03 | D14: ='N lookup'!D9 -> 0.1 | E14: ='N lookup'!E9 -> 0 | F14: ='N lookup'!F9 -> 0 | G14: ='N lookup'!G9 -> 0 | H14: ='N lookup'!H9 -> med | I14: ='N lookup'!I9 -> 15 | J14: ='N lookup'!J9 -> 7.5
A15: ='N lookup'!A10 -> Feather meal | B15: ='N lookup'!B10 -> 0.12 | C15: ='N lookup'!C10 -> 0 | D15: ='N lookup'!D10 -> 0 | E15: ='N lookup'!E10 -> 0 | F15: ='N lookup'!F10 -> 0 | G15: ='N lookup'!G10 -> 0 | H15: ='N lookup'!H10 -> med | I15: ='N lookup'!I10 -> 50 | J15: ='N lookup'!J10 -> 8.333333333
A16: ='N lookup'!A11 -> Fish emulsion | B16: ='N lookup'!B11 -> 0.05 | C16: ='N lookup'!C11 -> 0.02 | D16: ='N lookup'!D11 -> 0 | E16: ='N lookup'!E11 -> 0 | F16: ='N lookup'!F11 -> 0 | G16: ='N lookup'!G11 -> 0 | H16: ='N lookup'!H11 -> rapid | I16: ='N lookup'!I11 -> 0 | J16: ='N lookup'!J11 -> 0
A17: ='N lookup'!A12 -> Fish meal | B17: ='N lookup'!B12 -> 0.09 | C17: ='N lookup'!C12 -> 0.07 | D17: ='N lookup'!D12 -> 0 | E17: ='N lookup'!E12 -> 0 | F17: ='N lookup'!F12 -> 0 | G17: ='N lookup'!G12 -> 0 | H17: ='N lookup'!H12 -> med | I17: ='N lookup'!I12 -> 90 | J17: ='N lookup'!J12 -> 20
A18: ='N lookup'!A13 -> Grioux's Composted Poultry Manure | B18: ='N lookup'!B13 -> 0.02 | C18: ='N lookup'!C13 -> 0.03 | D18: ='N lookup'!D13 -> 0.015 | E18: ='N lookup'!E13 -> 0.07 | F18: ='N lookup'!F13 -> 0.01 | G18: ='N lookup'!G13 -> 0.05 | H18: ='N lookup'!H13 -> med | I18: ='N lookup'!I13 -> 2.5 | J18: ='N lookup'!J13 -> 2.5
A19: ='N lookup'!A14 -> Giroux's pellets | B19: ='N lookup'!B14 -> 0.04 | C19: ='N lookup'!C14 -> 0.03 | D19: ='N lookup'!D14 -> 0.02 | E19: ='N lookup'!E14 -> 0 | F19: ='N lookup'!F14 -> 0 | G19: ='N lookup'!G14 -> 0 | H19: ='N lookup'!H14 -> med | I19: ='N lookup'!I14 -> 8.3 | J19: ='N lookup'!J14 -> 4.15
A20: ='N lookup'!A15 -> Naturesafe | B20: ='N lookup'!B15 -> 0.13 | C20: ='N lookup'!C15 -> 0 | D20: ='N lookup'!D15 -> 0 | E20: ='N lookup'!E15 -> 0 | F20: ='N lookup'!F15 -> 0 | G20: ='N lookup'!G15 -> 0 | H20: ='N lookup'!H15 -> med | I20: ='N lookup'!I15 -> 36.25 | J20: ='N lookup'!J15 -> 5.576923077
A21: ='N lookup'!A16 -> Peanut meal | B21: ='N lookup'!B16 -> 0.08 | C21: ='N lookup'!C16 -> 0.01 | D21: ='N lookup'!D16 -> 0.02 | E21: ='N lookup'!E16 -> 0 | F21: ='N lookup'!F16 -> 0 | G21: ='N lookup'!G16 -> 0 | H21: ='N lookup'!H16 -> slow/ med | I21: ='N lookup'!I16 -> 37 | J21: ='N lookup'!J16 -> 9.25
A22: ='N lookup'!A17 -> Soybean meal | B22: ='N lookup'!B17 -> 0.07 | C22: ='N lookup'!C17 -> 0.02 | D22: ='N lookup'!D17 -> 0.01 | E22: ='N lookup'!E17 -> 0 | F22: ='N lookup'!F17 -> 0.03 | G22: ='N lookup'!G17 -> 0 | H22: ='N lookup'!H17 -> slow/ med | I22: ='N lookup'!I17 -> 17 | J22: ='N lookup'!J17 -> 4.857142857
A23: ='N lookup'!A18 -> Urea | B23: ='N lookup'!B18 -> 0.46 | C23: ='N lookup'!C18 -> 0 | D23: ='N lookup'!D18 -> 0 | E23: ='N lookup'!E18 -> 0 | F23: ='N lookup'!F18 -> 0 | G23: ='N lookup'!G18 -> 0 | H23: ='N lookup'!H18 -> rapid | I23: ='N lookup'!I18 -> 20 | J23: ='N lookup'!J18 -> 0.8695652174
A24: Blended Fertilizers
A25: ='N lookup'!A19 -> Cheep Cheep | B25: ='N lookup'!B19 -> 0.04 | C25: ='N lookup'!C19 -> 0.03 | D25: ='N lookup'!D19 -> 0.03 | E25: ='N lookup'!E19 -> 0 | F25: ='N lookup'!F19 -> 0 | G25: ='N lookup'!G19 -> 0 | H25: ='N lookup'!H19 -> med | I25: ='N lookup'!I19 -> 20.5 | J25: ='N lookup'!J19 -> 10.25
A26: ='N lookup'!A20 -> Custom 5-5-5 | B26: ='N lookup'!B20 -> 0.05 | C26: ='N lookup'!C20 -> 0.05 | D26: ='N lookup'!D20 -> 0.05 | E26: ='N lookup'!E20 -> 0 | F26: ='N lookup'!F20 -> 0 | G26: ='N lookup'!G20 -> 0 | H26: ='N lookup'!H20 -> med | I26: ='N lookup'!I20 -> 27 | J26: ='N lookup'!J20 -> 10.8
A27: ='N lookup'!A21 -> Custom 6-0-6 | B27: ='N lookup'!B21 -> 0.06 | C27: ='N lookup'!C21 -> 0 | D27: ='N lookup'!D21 -> 0.06 | E27: ='N lookup'!E21 -> 0 | F27: ='N lookup'!F21 -> 0 | G27: ='N lookup'!G21 -> 0 | H27: ='N lookup'!H21 -> med | I27: ='N lookup'!I21 -> 28.5 | J27: ='N lookup'!J21 -> 9.5
A28: ='N lookup'!A22 -> Pro-Start | B28: ='N lookup'!B22 -> 0.02 | C28: ='N lookup'!C22 -> 0.03 | D28: ='N lookup'!D22 -> 0.03 | E28: ='N lookup'!E22 -> 0 | F28: ='N lookup'!F22 -> 0 | G28: ='N lookup'!G22 -> 0 | H28: ='N lookup'!H22 -> med/ rapid | I28: ='N lookup'!I22 -> 17 | J28: ='N lookup'!J22 -> 17
A29: ='N lookup'!A23 -> Pro-Booster | B29: ='N lookup'!B23 -> 0.1 | C29: ='N lookup'!C23 -> 0 | D29: ='N lookup'!D23 -> 0 | E29: ='N lookup'!E23 -> 0 | F29: ='N lookup'!F23 -> 0 | G29: ='N lookup'!G23 -> 0 | H29: ='N lookup'!H23 -> med/ rapid | I29: ='N lookup'!I23 -> 32 | J29: ='N lookup'!J23 -> 6.4
A30: ='N lookup'!A24 -> Pro-Gro | B30: ='N lookup'!B24 -> 0.05 | C30: ='N lookup'!C24 -> 0.03 | D30: ='N lookup'!D24 -> 0.04 | E30: ='N lookup'!E24 -> 0 | F30: ='N lookup'!F24 -> 0 | G30: ='N lookup'!G24 -> 0 | H30: ='N lookup'!H24 -> med | I30: ='N lookup'!I24 -> 22.5 | J30: ='N lookup'!J24 -> 9
A31: NONE NEEDED | B31: 0 | C31: 0 | D31: 0 | E31: 0 | F31: 0 | G31: 0 | I31: 0 | J31: 0
A32: OTHER--enter Name in this cell, analysis and price to right--> | B32: 0.08 | C32: 0.02 | D32: 0.02 | J32: =I32/B32/50 -> 0
A37: Blue shading indicates an organic material, but check with your certifying agency before using.

Sheet N lookup (hidden)
A1: Material | B1: % N | C1: %P2 O5 | D1: %K20 | E1: %Ca | F1: %Mg | G1: %S | H1: Relative Availability | I1: Price per 50 lb | J1: Price per pound of N | K1: Pounds of fertilizer to meet your N needs (for your specified area) | L1: P205 Contributions | M1: K20 Contributions | N1: PoundsCa | O1: Pounds Mg | P1: Pounds S | Q1: Estimated Cost of fertilizer | R1: Divide by to accout for availability (% avail)
A2: ='Appendix--Fertilizer Costs'!A2 -> Alfalfa meal | B2: ='Appendix--Fertilizer Costs'!B2 -> 0.03 | C2: ='Appendix--Fertilizer Costs'!C2 -> 0.005 | D2: ='Appendix--Fertilizer Costs'!D2 -> 0.025 | E2: ='Appendix--Fertilizer Costs'!E2 -> 0 | F2: ='Appendix--Fertilizer Costs'!F2 -> 0 | G2: ='Appendix--Fertilizer Costs'!G2 -> 0 | H2: ='Appendix--Fertilizer Costs'!H2 -> slow/ med | I2: ='Appendix--Fertilizer Costs'!I2 -> 30 | J2: ='Appendix--Fertilizer Costs'!J2 -> 20 | K2: =('STEP 3--Nutrient Needs'!C11/B2)/R2 -> 5555.555556 | L2: =K2*C2 -> 27.77777778 | M2: =K2*D2 -> 138.8888889 | Q2: =K2*J2*B2 -> 3333.333333 | R2: 0.6
A3: ='Appendix--Fertilizer Costs'!A3 -> Ammonium sulfate | B3: ='Appendix--Fertilizer Costs'!B3 -> 0.21 | C3: ='Appendix--Fertilizer Costs'!C3 -> 0 | D3: ='Appendix--Fertilizer Costs'!D3 -> 0 | E3: ='Appendix--Fertilizer Costs'!E3 -> 0 | F3: ='Appendix--Fertilizer Costs'!F3 -> 0 | G3: ='Appendix--Fertilizer Costs'!G3 -> 0.23 | H3: ='Appendix--Fertilizer Costs'!H3 -> rapid | I3: ='Appendix--Fertilizer Costs'!I3 -> 10.7 | J3: ='Appendix--Fertilizer Costs'!J3 -> 1.019047619 | K3: =('STEP 3--Nutrient Needs'!C11/B3)/R3 -> 476.1904762 | P3: =G3*K3 -> 109.5238095 | Q3: =K3*B3*J3 -> 101.9047619 | R3: 1
A4: ='Appendix--Fertilizer Costs'!A4 -> Blood meal | B4: ='Appendix--Fertilizer Costs'!B4 -> 0.12 | C4: ='Appendix--Fertilizer Costs'!C4 -> 0.01 | D4: ='Appendix--Fertilizer Costs'!D4 -> 0.005 | E4: ='Appendix--Fertilizer Costs'!E4 -> 0 | F4: ='Appendix--Fertilizer Costs'!F4 -> 0 | G4: ='Appendix--Fertilizer Costs'!G4 -> 0 | H4: ='Appendix--Fertilizer Costs'!H4 -> med/ rapid | I4: ='Appendix--Fertilizer Costs'!I4 -> 68 | J4: ='Appendix--Fertilizer Costs'!J4 -> 11.33333333 | K4: =('STEP 3--Nutrient Needs'!C11/B4)/R4 -> 1366.120219 | L4: =K4*C4 -> 13.66120219 | M4: =K4*D4 -> 6.830601093 | Q4: 1857.923497 | R4: 0.61
A5: ='Appendix--Fertilizer Costs'!A6 -> Bone meal | B5: ='Appendix--Fertilizer Costs'!B6 -> 0.03 | C5: ='Appendix--Fertilizer Costs'!C6 -> 0.2 | D5: ='Appendix--Fertilizer Costs'!D6 -> 0 | E5: ='Appendix--Fertilizer Costs'!E6 -> 0 | F5: ='Appendix--Fertilizer Costs'!F6 -> 0 | G5: ='Appendix--Fertilizer Costs'!G6 -> 0 | H5: ='Appendix--Fertilizer Costs'!H6 -> med | I5: ='Appendix--Fertilizer Costs'!I6 -> 39 | J5: ='Appendix--Fertilizer Costs'!J6 -> 26 | K5: =('STEP 3--Nutrient Needs'!C11/B5)/R5 -> 10416.66667 | L5: =K5*C5 -> 2083.333333 | M5: 0 | Q5: 8125 | R5: 0.32
A6: ='Appendix--Fertilizer Costs'!A8 -> Calcium nitrate | B6: ='Appendix--Fertilizer Costs'!B8 -> 0.15 | C6: ='Appendix--Fertilizer Costs'!C8 -> 0 | D6: ='Appendix--Fertilizer Costs'!D8 -> 0 | E6: ='Appendix--Fertilizer Costs'!E8 -> 0.19 | F6: ='Appendix--Fertilizer Costs'!F8 -> 0 | G6: ='Appendix--Fertilizer Costs'!G8 -> 0 | H6: ='Appendix--Fertilizer Costs'!H8 -> rapid | I6: ='Appendix--Fertilizer Costs'!I8 -> 21.85 | J6: ='Appendix--Fertilizer Costs'!J8 -> 2.913333333 | K6: =('STEP 3--Nutrient Needs'!C11/B6)/R6 -> 666.6666667 | N6: =K6*E6 -> 126.6666667 | Q6: 291.3333333 | R6: 1
A7: ='Appendix--Fertilizer Costs'!A9 -> Chilean nitrate | B7: ='Appendix--Fertilizer Costs'!B9 -> 0.15 | C7: ='Appendix--Fertilizer Costs'!C9 -> 0 | D7: ='Appendix--Fertilizer Costs'!D9 -> 0.02 | E7: ='Appendix--Fertilizer Costs'!E9 -> 0 | F7: ='Appendix--Fertilizer Costs'!F9 -> 0 | G7: ='Appendix--Fertilizer Costs'!G9 -> 0 | H7: ='Appendix--Fertilizer Costs'!H9 -> rapid | I7: ='Appendix--Fertilizer Costs'!I9 -> 45 | J7: ='Appendix--Fertilizer Costs'!J9 -> 6 | K7: =('STEP 3--Nutrient Needs'!C11/B7)/R7 -> 666.6666667 | Q7: 600 | R7: 1
A8: ='Appendix--Fertilizer Costs'!A10 -> Dehydrated Poultry Manure (Kreher's or other) | B8: ='Appendix--Fertilizer Costs'!B10 -> 0.05 | C8: ='Appendix--Fertilizer Costs'!C10 -> 0.04 | D8: ='Appendix--Fertilizer Costs'!D10 -> 0.03 | E8: ='Appendix--Fertilizer Costs'!E10 -> 0.09 | F8: ='Appendix--Fertilizer Costs'!F10 -> 0 | G8: ='Appendix--Fertilizer Costs'!G10 -> 0 | H8: ='Appendix--Fertilizer Costs'!H10 -> med | I8: ='Appendix--Fertilizer Costs'!I10 -> 15 | J8: ='Appendix--Fertilizer Costs'!J10 -> 6 | K8: =('STEP 3--Nutrient Needs'!C11/B8)/R8 -> 3333.333333 | L8: =K8*C8 -> 133.3333333 | M8: =K8*D8 -> 100 | N8: =K8*E8 -> 300 | O8: =F8*K8 -> 0 | P8: =G8*K8 -> 0 | Q8: 1000 | R8: 0.6
A9: ='Appendix--Fertilizer Costs'!A11 -> Dehydrated High-K Blend Poultry Manure (Kreher's or other) | B9: ='Appendix--Fertilizer Costs'!B11 -> 0.04 | C9: ='Appendix--Fertilizer Costs'!C11 -> 0.03 | D9: ='Appendix--Fertilizer Costs'!D11 -> 0.1 | E9: ='Appendix--Fertilizer Costs'!E11 -> 0 | F9: ='Appendix--Fertilizer Costs'!F11 -> 0 | G9: ='Appendix--Fertilizer Costs'!G11 -> 0 | H9: ='Appendix--Fertilizer Costs'!H11 -> med | I9: ='Appendix--Fertilizer Costs'!I11 -> 15 | J9: ='Appendix--Fertilizer Costs'!J11 -> 7.5 | K9: =('STEP 3--Nutrient Needs'!C11/B9)/R9 -> 4166.666667 | L9: =K9*C9 -> 125 | M9: =K9*D9 -> 416.6666667 | N9: =K9*E9 -> 0 | O9: =F9*K9 -> 0 | P9: =G9*K9 -> 0 | Q9: 1250 | R9: 0.6
A10: ='Appendix--Fertilizer Costs'!A16 -> Feather meal | B10: ='Appendix--Fertilizer Costs'!B16 -> 0.12 | C10: ='Appendix--Fertilizer Costs'!C16 -> 0 | D10: ='Appendix--Fertilizer Costs'!D16 -> 0 | E10: ='Appendix--Fertilizer Costs'!E16 -> 0 | F10: ='Appendix--Fertilizer Costs'!F16 -> 0 | G10: ='Appendix--Fertilizer Costs'!G16 -> 0 | H10: ='Appendix--Fertilizer Costs'!H16 -> med | I10: ='Appendix--Fertilizer Costs'!I16 -> 50 | J10: ='Appendix--Fertilizer Costs'!J16 -> 8.333333333 | K10: =('STEP 3--Nutrient Needs'!C11/B10)/R10 -> 1282.051282 | Q10: 1282.051282 | R10: 0.65
A11: ='Appendix--Fertilizer Costs'!A17 -> Fish emulsion | B11: ='Appendix--Fertilizer Costs'!B17 -> 0.05 | C11: ='Appendix--Fertilizer Costs'!C17 -> 0.02 | D11: ='Appendix--Fertilizer Costs'!D17 -> 0 | E11: ='Appendix--Fertilizer Costs'!E17 -> 0 | F11: ='Appendix--Fertilizer Costs'!F17 -> 0 | G11: ='Appendix--Fertilizer Costs'!G17 -> 0 | H11: ='Appendix--Fertilizer Costs'!H17 -> rapid | I11: ='Appendix--Fertilizer Costs'!I17 -> 0 | J11: ='Appendix--Fertilizer Costs'!J17 -> 0 | K11: =('STEP 3--Nutrient Needs'!C11/B11)/R11 -> 2000 | L11: =K11*C11 -> 40 | Q11: 0 | R11: 1
A12: ='Appendix--Fertilizer Costs'!A18 -> Fish meal | B12: ='Appendix--Fertilizer Costs'!B18 -> 0.09 | C12: ='Appendix--Fertilizer Costs'!C18 -> 0.07 | D12: ='Appendix--Fertilizer Costs'!D18 -> 0 | E12: ='Appendix--Fertilizer Costs'!E18 -> 0 | F12: ='Appendix--Fertilizer Costs'!F18 -> 0 | G12: ='Appendix--Fertilizer Costs'!G18 -> 0 | H12: ='Appendix--Fertilizer Costs'!H18 -> med | I12: ='Appendix--Fertilizer Costs'!I18 -> 90 | J12: ='Appendix--Fertilizer Costs'!J18 -> 20 | K12: =('STEP 3--Nutrient Needs'!C11/B12)/R12 -> 1709.401709 | L12: 119.6581197 | Q12: 3076.923077 | R12: 0.65
A13: ='Appendix--Fertilizer Costs'!A19 -> Grioux's Composted Poultry Manure | B13: ='Appendix--Fertilizer Costs'!B19 -> 0.02 | C13: ='Appendix--Fertilizer Costs'!C19 -> 0.03 | D13: ='Appendix--Fertilizer Costs'!D19 -> 0.015 | E13: ='Appendix--Fertilizer Costs'!E19 -> 0.07 | F13: ='Appendix--Fertilizer Costs'!F19 -> 0.01 | G13: ='Appendix--Fertilizer Costs'!G19 -> 0.05 | H13: ='Appendix--Fertilizer Costs'!H19 -> med | I13: ='Appendix--Fertilizer Costs'!I19 -> 2.5 | J13: ='Appendix--Fertilizer Costs'!J19 -> 2.5 | K13: =('STEP 3--Nutrient Needs'!C11/B13)/R13 -> 8333.333333 | L13: 250 | M13: =K13*D13 -> 125 | N13: =K13*E13 -> 583.3333333 | O13: =F13*K13 -> 83.33333333 | P13: =G13*K13 -> 416.6666667 | Q13: 416.6666667 | R13: 0.6
A14: Giroux's pellets | B14: 0.04 | C14: 0.03 | D14: 0.02 | H14: med | I14: 8.3 | J14: =I14*2/(B14*100) -> 4.15 | K14: =('STEP 3--Nutrient Needs'!C11/B14)/R14 -> 4166.666667 | L14: 125 | M14: 83.33333333 | N14: =K14*E14 -> 0 | O14: =F14*K14 -> 0 | P14: =G14*K14 -> 0 | Q14: =K14*B14*J14 -> 691.6666667 | R14: 0.6
A15: ='Appendix--Fertilizer Costs'!A26 -> Naturesafe | B15: ='Appendix--Fertilizer Costs'!B26 -> 0.13 | C15: ='Appendix--Fertilizer Costs'!C26 -> 0 | D15: ='Appendix--Fertilizer Costs'!D26 -> 0 | E15: ='Appendix--Fertilizer Costs'!E26 -> 0 | F15: ='Appendix--Fertilizer Costs'!F26 -> 0 | G15: ='Appendix--Fertilizer Costs'!G26 -> 0 | H15: ='Appendix--Fertilizer Costs'!H26 -> med | I15: ='Appendix--Fertilizer Costs'!I26 -> 36.25 | J15: ='Appendix--Fertilizer Costs'!J26 -> 5.576923077 | K15: =('STEP 3--Nutrient Needs'!C11/B15)/R15 -> 1098.901099 | L15: 0 | M15: 0 | N15: 0 | Q15: =K15*B15*J15 -> 796.7032967 | R15: 0.7
A16: ='Appendix--Fertilizer Costs'!A27 -> Peanut meal | B16: ='Appendix--Fertilizer Costs'!B27 -> 0.08 | C16: ='Appendix--Fertilizer Costs'!C27 -> 0.01 | D16: ='Appendix--Fertilizer Costs'!D27 -> 0.02 | E16: ='Appendix--Fertilizer Costs'!E27 -> 0 | F16: ='Appendix--Fertilizer Costs'!F27 -> 0 | G16: ='Appendix--Fertilizer Costs'!G27 -> 0 | H16: ='Appendix--Fertilizer Costs'!H27 -> slow/ med | I16: ='Appendix--Fertilizer Costs'!I27 -> 37 | J16: ='Appendix--Fertilizer Costs'!J27 -> 9.25 | K16: =('STEP 3--Nutrient Needs'!C11/B16)/R16 -> 2083.333333 | L16: =K16*C16 -> 20.83333333 | M16: =K16*D16 -> 41.66666667 | Q16: 1541.666667 | R16: 0.6
A17: ='Appendix--Fertilizer Costs'!A31 -> Soybean meal | B17: ='Appendix--Fertilizer Costs'!B31 -> 0.07 | C17: ='Appendix--Fertilizer Costs'!C31 -> 0.02 | D17: ='Appendix--Fertilizer Costs'!D31 -> 0.01 | E17: ='Appendix--Fertilizer Costs'!E31 -> 0 | F17: ='Appendix--Fertilizer Costs'!F31 -> 0.03 | G17: ='Appendix--Fertilizer Costs'!G31 -> 0 | H17: ='Appendix--Fertilizer Costs'!H31 -> slow/ med | I17: ='Appendix--Fertilizer Costs'!I31 -> 17 | J17: ='Appendix--Fertilizer Costs'!J31 -> 4.857142857 | K17: =('STEP 3--Nutrient Needs'!C11/B17)/R17 -> 1904.761905 | L17: 38.0952381 | M17: 19.04761905 | N17: =K17*E17 -> 0 | O17: =F17*K17 -> 57.14285714 | P17: =G17*K17 -> 0 | Q17: 647.6190476 | R17: 0.75
A18: ='Appendix--Fertilizer Costs'!A34 -> Urea | B18: ='Appendix--Fertilizer Costs'!B34 -> 0.46 | C18: ='Appendix--Fertilizer Costs'!C34 -> 0 | D18: ='Appendix--Fertilizer Costs'!D34 -> 0 | E18: ='Appendix--Fertilizer Costs'!E34 -> 0 | F18: ='Appendix--Fertilizer Costs'!F34 -> 0 | G18: ='Appendix--Fertilizer Costs'!G34 -> 0 | H18: ='Appendix--Fertilizer Costs'!H34 -> rapid | I18: ='Appendix--Fertilizer Costs'!I34 -> 20 | J18: ='Appendix--Fertilizer Costs'!J34 -> 0.8695652174 | K18: =('STEP 3--Nutrient Needs'!C11/B18)/R18 -> 217.3913043 | L18: 0 | M18: 0 | O18: =F18*K18 -> 0 | Q18: 86.95652174 | R18: 1
A19: ='Appendix--Fertilizer Costs'!A37 -> Cheep Cheep | B19: ='Appendix--Fertilizer Costs'!B37 -> 0.04 | C19: ='Appendix--Fertilizer Costs'!C37 -> 0.03 | D19: ='Appendix--Fertilizer Costs'!D37 -> 0.03 | E19: ='Appendix--Fertilizer Costs'!E37 -> 0 | F19: ='Appendix--Fertilizer Costs'!F37 -> 0 | G19: ='Appendix--Fertilizer Costs'!G37 -> 0 | H19: ='Appendix--Fertilizer Costs'!H37 -> med | I19: ='Appendix--Fertilizer Costs'!I37 -> 20.5 | J19: ='Appendix--Fertilizer Costs'!J37 -> 10.25 | K19: =('STEP 3--Nutrient Needs'!C11/B19)/R19 -> 3846.153846 | L19: 115.3846154 | M19: 115.3846154 | Q19: 1576.923077 | R19: 0.65
A20: ='Appendix--Fertilizer Costs'!A38 -> Custom 5-5-5 | B20: ='Appendix--Fertilizer Costs'!B38 -> 0.05 | C20: ='Appendix--Fertilizer Costs'!C38 -> 0.05 | D20: ='Appendix--Fertilizer Costs'!D38 -> 0.05 | E20: ='Appendix--Fertilizer Costs'!E38 -> 0 | F20: ='Appendix--Fertilizer Costs'!F38 -> 0 | G20: ='Appendix--Fertilizer Costs'!G38 -> 0 | H20: ='Appendix--Fertilizer Costs'!H38 -> med | I20: ='Appendix--Fertilizer Costs'!I38 -> 27 | J20: ='Appendix--Fertilizer Costs'!J38 -> 10.8 | K20: =('STEP 3--Nutrient Needs'!C11/B20)/R20 -> 3076.923077 | L20: 153.8461538 | M20: 153.8461538 | Q20: 1661.538462 | R20: 0.65
A21: ='Appendix--Fertilizer Costs'!A39 -> Custom 6-0-6 | B21: ='Appendix--Fertilizer Costs'!B39 -> 0.06 | C21: ='Appendix--Fertilizer Costs'!C39 -> 0 | D21: ='Appendix--Fertilizer Costs'!D39 -> 0.06 | E21: ='Appendix--Fertilizer Costs'!E39 -> 0 | F21: ='Appendix--Fertilizer Costs'!F39 -> 0 | G21: ='Appendix--Fertilizer Costs'!G39 -> 0 | H21: ='Appendix--Fertilizer Costs'!H39 -> med | I21: ='Appendix--Fertilizer Costs'!I39 -> 28.5 | J21: ='Appendix--Fertilizer Costs'!J39 -> 9.5 | K21: =('STEP 3--Nutrient Needs'!C11/B21)/R21 -> 2564.102564 | L21: 0 | M21: 153.8461538 | Q21: 1461.538462 | R21: 0.65
A22: ='Appendix--Fertilizer Costs'!A40 -> Pro-Start | B22: ='Appendix--Fertilizer Costs'!B40 -> 0.02 | C22: ='Appendix--Fertilizer Costs'!C40 -> 0.03 | D22: ='Appendix--Fertilizer Costs'!D40 -> 0.03 | E22: ='Appendix--Fertilizer Costs'!E40 -> 0 | F22: ='Appendix--Fertilizer Costs'!F40 -> 0 | G22: ='Appendix--Fertilizer Costs'!G40 -> 0 | H22: ='Appendix--Fertilizer Costs'!H40 -> med/ rapid | I22: ='Appendix--Fertilizer Costs'!I40 -> 17 | J22: ='Appendix--Fertilizer Costs'!J40 -> 17 | K22: =('STEP 3--Nutrient Needs'!C11/B22)/R22 -> 7692.307692 | L22: 230.7692308 | M22: 230.7692308 | Q22: 2615.384615 | R22: 0.65
A23: ='Appendix--Fertilizer Costs'!A41 -> Pro-Booster | B23: ='Appendix--Fertilizer Costs'!B41 -> 0.1 | C23: ='Appendix--Fertilizer Costs'!C41 -> 0 | D23: ='Appendix--Fertilizer Costs'!D41 -> 0 | E23: ='Appendix--Fertilizer Costs'!E41 -> 0 | F23: ='Appendix--Fertilizer Costs'!F41 -> 0 | G23: ='Appendix--Fertilizer Costs'!G41 -> 0 | H23: ='Appendix--Fertilizer Costs'!H41 -> med/ rapid | I23: ='Appendix--Fertilizer Costs'!I41 -> 32 | J23: ='Appendix--Fertilizer Costs'!J41 -> 6.4 | K23: =('STEP 3--Nutrient Needs'!C11/B23)/R23 -> 1250 | L23: 0 | M23: 0 | Q23: 800 | R23: 0.8
A24: ='Appendix--Fertilizer Costs'!A42 -> Pro-Gro | B24: ='Appendix--Fertilizer Costs'!B42 -> 0.05 | C24: ='Appendix--Fertilizer Costs'!C42 -> 0.03 | D24: ='Appendix--Fertilizer Costs'!D42 -> 0.04 | E24: ='Appendix--Fertilizer Costs'!E42 -> 0 | F24: ='Appendix--Fertilizer Costs'!F42 -> 0 | G24: ='Appendix--Fertilizer Costs'!G42 -> 0 | H24: ='Appendix--Fertilizer Costs'!H42 -> med | I24: ='Appendix--Fertilizer Costs'!I42 -> 22.5 | J24: ='Appendix--Fertilizer Costs'!J42 -> 9 | K24: =('STEP 3--Nutrient Needs'!C11/B24)/R24 -> 2500 | L24: 75 | M24: 100 | Q24: 1125 | R24: 0.8
A25: ='STEP 4--Choose N'!A31 -> NONE NEEDED | B25: ='STEP 4--Choose N'!B31 -> 0 | C25: ='STEP 4--Choose N'!C31 -> 0 | D25: ='STEP 4--Choose N'!D31 -> 0 | E25: ='STEP 4--Choose N'!E31 -> 0 | F25: ='STEP 4--Choose N'!F31 -> 0 | G25: ='STEP 4--Choose N'!G31 -> 0 | H25: ='STEP 4--Choose N'!H31 -> 0 | I25: ='STEP 4--Choose N'!I31 -> 0 | J25: ='STEP 4--Choose N'!J31 -> 0 | K25: ='STEP 4--Choose N'!K30 -> 0 | L25: 0 | M25: 0 | N25: 0 | O25: 0 | P25: 0 | Q25: 0 | R25: 0
A26: ='STEP 4--Choose N'!A32 -> OTHER--enter Name in this cell, analysis and price to right--> | B26: ='STEP 4--Choose N'!B32 -> 0.08 | C26: ='STEP 4--Choose N'!C32 -> 0.02 | D26: ='STEP 4--Choose N'!D32 -> 0.02 | E26: ='STEP 4--Choose N'!E32 -> 0 | F26: ='STEP 4--Choose N'!F32 -> 0 | G26: ='STEP 4--Choose N'!G32 -> 0 | H26: ='STEP 4--Choose N'!H32 -> 0 | I26: ='STEP 4--Choose N'!I32 -> 0 | J26: ='STEP 4--Choose N'!J32 -> 0 | K26: =('STEP 3--Nutrient Needs'!C11/B26)/R26 -> 1785.714286 | L26: =K26*C26 -> 35.71428571 | M26: =K26*D26 -> 35.71428571 | Q26: =K26*B26*J26 -> 0 | R26: 0.7
B47: ='STEP 4--Choose N'!B32 -> 0.08 | C47: ='STEP 4--Choose N'!C32 -> 0.02 | D47: ='STEP 4--Choose N'!D32 -> 0.02 | E47: ='STEP 4--Choose N'!E32 -> 0 | F47: ='STEP 4--Choose N'!F32 -> 0 | G47: ='STEP 4--Choose N'!G32 -> 0 | H47: ='STEP 4--Choose N'!H32 -> 0 | I47: ='STEP 4--Choose N'!#REF! ->  | J47: ='STEP 4--Choose N'!J32 -> 0 | K47: =('STEP 3--Nutrient Needs'!C11*'STEP 1--Field Information'!F23/B47)/R47 -> 1923.076923 | L47: =K47*C47 -> 38.46153846 | M47: =K47*D47 -> 38.46153846 | Q47: =K47*B47*J47 -> 0 | R47: 0.65

Sheet STEP 5--Choose P
A1: Instructions: Select your phosphate amendment from the drop down menu in the yellow cell after reviewing the chart below.
A2: Select Your Phosphate Amendment-> | D2: NONE NEEDED
A3: Your N selection contributes | C3: =VLOOKUP('STEP 4--Choose N'!D2,'N lookup'!A2:Q47,12,FALSE) ->  | D3: lbs P205/ acre
A4: You should apply an additional | C4: =('STEP 3--Nutrient Needs'!D11)-VLOOKUP('STEP 4--Choose N'!D2,'N lookup'!A2:Q47,12,FALSE) ->  | D4: lbs P205/ acre
A6: POSSIBLE PHOSPHATE AMENDMENTS
A7: ='Appendix--Fertilizer Costs'!A1 -> MATERIAL | B7: ='Appendix--Fertilizer Costs'!B1 -> % N | C7: ='Appendix--Fertilizer Costs'!C1 -> % P2O5 | D7: ='Appendix--Fertilizer Costs'!D1 -> % K20 | E7: ='Appendix--Fertilizer Costs'!E1 -> % Ca | F7: ='Appendix--Fertilizer Costs'!F1 -> % Mg | G7: ='Appendix--Fertilizer Costs'!G1 -> % S | H7: ='Appendix--Fertilizer Costs'!H1 -> Release Rate | I7: ='Appendix--Fertilizer Costs'!I1 -> Price per 50 lb | J7: ='Appendix--Fertilizer Costs'!K1 -> $/lb P
A8: ='Appendix--Fertilizer Costs'!A5 -> Bone char | B8: ='Appendix--Fertilizer Costs'!B5 -> 0 | C8: ='Appendix--Fertilizer Costs'!C5 -> 0.16 | D8: ='Appendix--Fertilizer Costs'!D5 -> 0 | E8: ='Appendix--Fertilizer Costs'!E5 -> 0 | F8: ='Appendix--Fertilizer Costs'!F5 -> 0 | G8: ='Appendix--Fertilizer Costs'!G5 -> 0 | H8: ='Appendix--Fertilizer Costs'!H5 -> med | I8: ='Appendix--Fertilizer Costs'!I5 -> 34 | J8: ='Appendix--Fertilizer Costs'!K5 -> 4.25
A9: ='Appendix--Fertilizer Costs'!A6 -> Bone meal | B9: ='Appendix--Fertilizer Costs'!B6 -> 0.03 | C9: ='Appendix--Fertilizer Costs'!C6 -> 0.2 | D9: ='Appendix--Fertilizer Costs'!D6 -> 0 | E9: ='Appendix--Fertilizer Costs'!E6 -> 0 | F9: ='Appendix--Fertilizer Costs'!F6 -> 0 | G9: ='Appendix--Fertilizer Costs'!G6 -> 0 | H9: ='Appendix--Fertilizer Costs'!H6 -> med | I9: ='Appendix--Fertilizer Costs'!I6 -> 39 | J9: ='Appendix--Fertilizer Costs'!K6 -> 3.9
A10: ='Appendix--Fertilizer Costs'!A10 -> Dehydrated Poultry Manure (Kreher's or other) | B10: ='Appendix--Fertilizer Costs'!B10 -> 0.05 | C10: ='Appendix--Fertilizer Costs'!C10 -> 0.04 | D10: ='Appendix--Fertilizer Costs'!D10 -> 0.03 | E10: ='Appendix--Fertilizer Costs'!E10 -> 0.09 | F10: ='Appendix--Fertilizer Costs'!F10 -> 0 | G10: ='Appendix--Fertilizer Costs'!G10 -> 0 | H10: ='Appendix--Fertilizer Costs'!H10 -> med | I10: ='Appendix--Fertilizer Costs'!I10 -> 15 | J10: ='Appendix--Fertilizer Costs'!K10 -> 7.5
A11: ='Appendix--Fertilizer Costs'!A11 -> Dehydrated High-K Blend Poultry Manure (Kreher's or other) | B11: ='Appendix--Fertilizer Costs'!B11 -> 0.04 | C11: ='Appendix--Fertilizer Costs'!C11 -> 0.03 | D11: ='Appendix--Fertilizer Costs'!D11 -> 0.1 | E11: ='Appendix--Fertilizer Costs'!E11 -> 0 | F11: ='Appendix--Fertilizer Costs'!F11 -> 0 | G11: ='Appendix--Fertilizer Costs'!G11 -> 0 | H11: ='Appendix--Fertilizer Costs'!H11 -> med | I11: ='Appendix--Fertilizer Costs'!I11 -> 15 | J11: ='Appendix--Fertilizer Costs'!K11 -> 10
A12: ='Appendix--Fertilizer Costs'!A12 -> Diammonium phosphate | B12: ='Appendix--Fertilizer Costs'!B12 -> 0 | C12: ='Appendix--Fertilizer Costs'!C12 -> 0.46 | D12: ='Appendix--Fertilizer Costs'!D12 -> 0 | E12: ='Appendix--Fertilizer Costs'!E12 -> 0 | F12: ='Appendix--Fertilizer Costs'!F12 -> 0 | G12: ='Appendix--Fertilizer Costs'!G12 -> 0 | H12: ='Appendix--Fertilizer Costs'!H12 -> rapid | I12: ='Appendix--Fertilizer Costs'!I12 -> 11.825 | J12: ='Appendix--Fertilizer Costs'!K12 -> 0.5141304348
A13: ='Appendix--Fertilizer Costs'!A19 -> Grioux's Composted Poultry Manure | B13: ='Appendix--Fertilizer Costs'!B19 -> 0.02 | C13: ='Appendix--Fertilizer Costs'!C19 -> 0.03 | D13: ='Appendix--Fertilizer Costs'!D19 -> 0.015 | E13: ='Appendix--Fertilizer Costs'!E19 -> 0.07 | F13: ='Appendix--Fertilizer Costs'!F19 -> 0.01 | G13: ='Appendix--Fertilizer Costs'!G19 -> 0.05 | H13: ='Appendix--Fertilizer Costs'!H19 -> med | I13: ='Appendix--Fertilizer Costs'!I19 -> 2.5 | J13: ='Appendix--Fertilizer Costs'!K19 -> 1.666666667
A14: ='Appendix--Fertilizer Costs'!A20 -> Giroux's pellets | B14: ='Appendix--Fertilizer Costs'!B20 -> 0.04 | C14: ='Appendix--Fertilizer Costs'!C20 -> 0.03 | D14: ='Appendix--Fertilizer Costs'!D20 -> 0.02 | E14: ='Appendix--Fertilizer Costs'!E20 -> 0 | F14: ='Appendix--Fertilizer Costs'!F20 -> 0 | G14: ='Appendix--Fertilizer Costs'!G20 -> 0 | H14: ='Appendix--Fertilizer Costs'!H20 -> med | I14: ='Appendix--Fertilizer Costs'!I20 -> 8.3 | J14: ='Appendix--Fertilizer Costs'!K20 -> 5.533333333
A15: ='Appendix--Fertilizer Costs'!A30 -> Rock phosphate | B15: ='Appendix--Fertilizer Costs'!B30 -> 0 | C15: ='Appendix--Fertilizer Costs'!C30 -> 0.05 | D15: ='Appendix--Fertilizer Costs'!D30 -> 0 | E15: ='Appendix--Fertilizer Costs'!E30 -> 0 | F15: ='Appendix--Fertilizer Costs'!F30 -> 0 | G15: ='Appendix--Fertilizer Costs'!G30 -> 0 | H15: ='Appendix--Fertilizer Costs'!H30 -> very slow | I15: ='Appendix--Fertilizer Costs'!I30 -> 24 | J15: ='Appendix--Fertilizer Costs'!K30 -> 9.6
A16: ='Appendix--Fertilizer Costs'!A33 -> Triple super phosphate | B16: ='Appendix--Fertilizer Costs'!B33 -> 0 | C16: ='Appendix--Fertilizer Costs'!C33 -> 0.46 | D16: ='Appendix--Fertilizer Costs'!D33 -> 0 | E16: ='Appendix--Fertilizer Costs'!E33 -> 0 | F16: ='Appendix--Fertilizer Costs'!F33 -> 0 | G16: ='Appendix--Fertilizer Costs'!G33 -> 0 | H16: ='Appendix--Fertilizer Costs'!H33 -> rapid | I16: ='Appendix--Fertilizer Costs'!I33 -> 21 | J16: ='Appendix--Fertilizer Costs'!K33 -> 0.9130434783
A17: ='Appendix--Fertilizer Costs'!A36 -> Blended fertilizers
A18: ='Appendix--Fertilizer Costs'!A37 -> Cheep Cheep | B18: ='Appendix--Fertilizer Costs'!B37 -> 0.04 | C18: ='Appendix--Fertilizer Costs'!C37 -> 0.03 | D18: ='Appendix--Fertilizer Costs'!D37 -> 0.03 | E18: ='Appendix--Fertilizer Costs'!E37 -> 0 | F18: ='Appendix--Fertilizer Costs'!F37 -> 0 | G18: ='Appendix--Fertilizer Costs'!G37 -> 0 | H18: ='Appendix--Fertilizer Costs'!H37 -> med | I18: ='Appendix--Fertilizer Costs'!I37 -> 20.5 | J18: ='Appendix--Fertilizer Costs'!K37 -> 13.66666667
A19: ='Appendix--Fertilizer Costs'!A38 -> Custom 5-5-5 | B19: ='Appendix--Fertilizer Costs'!B38 -> 0.05 | C19: ='Appendix--Fertilizer Costs'!C38 -> 0.05 | D19: ='Appendix--Fertilizer Costs'!D38 -> 0.05 | E19: ='Appendix--Fertilizer Costs'!E38 -> 0 | F19: ='Appendix--Fertilizer Costs'!F38 -> 0 | G19: ='Appendix--Fertilizer Costs'!G38 -> 0 | H19: ='Appendix--Fertilizer Costs'!H38 -> med | I19: ='Appendix--Fertilizer Costs'!I38 -> 27 | J19: ='Appendix--Fertilizer Costs'!K38 -> 10.8
A20: ='Appendix--Fertilizer Costs'!A40 -> Pro-Start | B20: ='Appendix--Fertilizer Costs'!B40 -> 0.02 | C20: ='Appendix--Fertilizer Costs'!C40 -> 0.03 | D20: ='Appendix--Fertilizer Costs'!D40 -> 0.03 | E20: ='Appendix--Fertilizer Costs'!E40 -> 0 | F20: ='Appendix--Fertilizer Costs'!F40 -> 0 | G20: ='Appendix--Fertilizer Costs'!G40 -> 0 | H20: ='Appendix--Fertilizer Costs'!H40 -> med/ rapid | I20: ='Appendix--Fertilizer Costs'!I40 -> 17 | J20: ='Appendix--Fertilizer Costs'!K40 -> 11.33333333
A21: ='Appendix--Fertilizer Costs'!A42 -> Pro-Gro | B21: ='Appendix--Fertilizer Costs'!B42 -> 0.05 | C21: ='Appendix--Fertilizer Costs'!C42 -> 0.03 | D21: ='Appendix--Fertilizer Costs'!D42 -> 0.04 | E21: ='Appendix--Fertilizer Costs'!E42 -> 0 | F21: ='Appendix--Fertilizer Costs'!F42 -> 0 | G21: ='Appendix--Fertilizer Costs'!G42 -> 0 | H21: ='Appendix--Fertilizer Costs'!H42 -> med | I21: ='Appendix--Fertilizer Costs'!I42 -> 22.5 | J21: ='Appendix--Fertilizer Costs'!K42 -> 15
A22: NONE NEEDED | B22: 0 | C22: 0 | D22: 0 | E22: 0 | F22: 0 | G22: 0 | I22: 0 | J22: 0
A23: OTHER--enter Name in this cell, analysis and price to right--> | J23: =I23*2/(C23*100) -> 
A29: Blue shading indicates an organic material, but check with your certifying agency before using.

Sheet P lookup (hidden)
A1: ='STEP 5--Choose P'!A7 -> MATERIAL | B1: ='STEP 5--Choose P'!B7 -> % N | C1: ='STEP 5--Choose P'!C7 -> % P2O5 | D1: ='STEP 5--Choose P'!D7 -> % K20 | E1: ='STEP 5--Choose P'!E7 -> % Ca | F1: ='STEP 5--Choose P'!F7 -> % Mg | G1: ='STEP 5--Choose P'!G7 -> % S | H1: ='STEP 5--Choose P'!H7 -> Release Rate | I1: ='STEP 5--Choose P'!I7 -> Price per 50 lb | J1: ='STEP 5--Choose P'!J7 -> $/lb P | K1: Pounds of P205 fertilizer per acre (accounts for any P205 in your N fertilizer selection) | L1: K20 Contributions (pounds) | M1: PoundsCa | N1: Pounds Mg | O1: Pounds S | P1: Estimated Cost
A2: ='STEP 5--Choose P'!A8 -> Bone char | C2: 0.16 | H2: med | I2: ='STEP 5--Choose P'!I8 -> 34 | J2: =I2*2/(C2*100) -> 4.25 | K2: =('STEP 3--Nutrient Needs'!D11/C2)-(VLOOKUP('STEP 4--Choose N'!D2,'N lookup'!A2:Q47,12,FALSE)/C2) ->  | L2: =K2*D2 ->  | P2: =(K2*I2)/50 -> 
A3: ='STEP 5--Choose P'!A9 -> Bone meal | B3: 0.03 | C3: 0.22 | H3: med | I3: ='STEP 5--Choose P'!I9 -> 39 | J3: =78/22 -> 3.545454545 | K3: =('STEP 3--Nutrient Needs'!D11/C3)-VLOOKUP('STEP 4--Choose N'!D2,'N lookup'!A2:Q47,12,FALSE)/C3 ->  | L3: =K3*D3 -> 
A4: ='STEP 5--Choose P'!A10 -> Dehydrated Poultry Manure (Kreher's or other) | B4: ='STEP 5--Choose P'!B10 -> 0.05 | C4: ='STEP 5--Choose P'!C10 -> 0.04 | D4: ='STEP 5--Choose P'!D10 -> 0.03 | E4: ='STEP 5--Choose P'!E10 -> 0.09 | F4: ='STEP 5--Choose P'!F10 -> 0 | G4: ='STEP 5--Choose P'!G10 -> 0 | H4: ='STEP 5--Choose P'!H10 -> med | I4: ='STEP 5--Choose P'!I10 -> 15 | J4: ='STEP 5--Choose P'!J10 -> 7.5 | K4: =('STEP 3--Nutrient Needs'!D11/C4)-VLOOKUP('STEP 4--Choose N'!D2,'N lookup'!A2:Q47,12,FALSE)/C4 -> 
A5: ='STEP 5--Choose P'!A11 -> Dehydrated High-K Blend Poultry Manure (Kreher's or other) | B5: ='STEP 5--Choose P'!B11 -> 0.04 | C5: ='STEP 5--Choose P'!C11 -> 0.03 | D5: ='STEP 5--Choose P'!D11 -> 0.1 | E5: ='STEP 5--Choose P'!E11 -> 0 | F5: ='STEP 5--Choose P'!F11 -> 0 | G5: ='STEP 5--Choose P'!G11 -> 0 | H5: ='STEP 5--Choose P'!H11 -> med | I5: ='STEP 5--Choose P'!I11 -> 15 | J5: ='STEP 5--Choose P'!J11 -> 10 | K5: =('STEP 3--Nutrient Needs'!D11/C5)-VLOOKUP('STEP 4--Choose N'!D2,'N lookup'!A2:Q47,12,FALSE)/C5 -> 
A6: ='STEP 5--Choose P'!A12 -> Diammonium phosphate | B6: ='STEP 5--Choose P'!B12 -> 0 | C6: ='STEP 5--Choose P'!C12 -> 0.46 | D6: ='STEP 5--Choose P'!D12 -> 0 | E6: ='STEP 5--Choose P'!E12 -> 0 | F6: ='STEP 5--Choose P'!F12 -> 0 | G6: ='STEP 5--Choose P'!G12 -> 0 | H6: ='STEP 5--Choose P'!H12 -> rapid | I6: ='STEP 5--Choose P'!I12 -> 11.825 | J6: ='STEP 5--Choose P'!J12 -> 0.5141304348 | K6: =('STEP 3--Nutrient Needs'!D11/C6)-VLOOKUP('STEP 4--Choose N'!D2,'N lookup'!A2:Q47,12,FALSE)/C6 -> 
A7: ='STEP 5--Choose P'!A13 -> Grioux's Composted Poultry Manure | B7: ='STEP 5--Choose P'!B13 -> 0.02 | C7: ='STEP 5--Choose P'!C13 -> 0.03 | D7: ='STEP 5--Choose P'!D13 -> 0.015 | E7: ='STEP 5--Choose P'!E13 -> 0.07 | F7: ='STEP 5--Choose P'!F13 -> 0.01 | G7: ='STEP 5--Choose P'!G13 -> 0.05 | H7: ='STEP 5--Choose P'!H13 -> med | I7: ='STEP 5--Choose P'!I13 -> 2.5 | J7: ='STEP 5--Choose P'!J13 -> 1.666666667 | K7: =('STEP 3--Nutrient Needs'!D11/C7)-VLOOKUP('STEP 4--Choose N'!D2,'N lookup'!A2:Q47,12,FALSE)/C7 -> 
A8: ='STEP 5--Choose P'!A15 -> Rock phosphate | B8: ='STEP 5--Choose P'!B15 -> 0 | C8: ='STEP 5--Choose P'!C15 -> 0.05 | D8: ='STEP 5--Choose P'!D15 -> 0 | E8: ='STEP 5--Choose P'!E15 -> 0 | F8: ='STEP 5--Choose P'!F15 -> 0 | G8: ='STEP 5--Choose P'!G15 -> 0 | H8: ='STEP 5--Choose P'!H15 -> very slow | I8: ='STEP 5--Choose P'!I15 -> 24 | J8: ='STEP 5--Choose P'!J15 -> 9.6 | K8: =('STEP 3--Nutrient Needs'!D11/C8)-VLOOKUP('STEP 4--Choose N'!D2,'N lookup'!A2:Q47,12,FALSE)/C8 -> 
A9: ='STEP 5--Choose P'!A16 -> Triple super phosphate | B9: ='STEP 5--Choose P'!B16 -> 0 | C9: ='STEP 5--Choose P'!C16 -> 0.46 | D9: ='STEP 5--Choose P'!D16 -> 0 | E9: ='STEP 5--Choose P'!E16 -> 0 | F9: ='STEP 5--Choose P'!F16 -> 0 | G9: ='STEP 5--Choose P'!G16 -> 0 | H9: ='STEP 5--Choose P'!H16 -> rapid | I9: ='STEP 5--Choose P'!I16 -> 21 | J9: ='STEP 5--Choose P'!J16 -> 0.9130434783 | K9: =('STEP 3--Nutrient Needs'!D11/C9)-VLOOKUP('STEP 4--Choose N'!D2,'N lookup'!A2:Q47,12,FALSE)/C9 -> 
A10: ='STEP 5--Choose P'!A17 -> Blended fertilizers | L10: 0 | P10: 0
A11: ='STEP 5--Choose P'!A18 -> Cheep Cheep | B11: ='STEP 5--Choose P'!B18 -> 0.04 | C11: ='STEP 5--Choose P'!C18 -> 0.03 | D11: ='STEP 5--Choose P'!D18 -> 0.03 | E11: ='STEP 5--Choose P'!E18 -> 0 | F11: ='STEP 5--Choose P'!F18 -> 0 | G11: ='STEP 5--Choose P'!G18 -> 0 | H11: ='STEP 5--Choose P'!H18 -> med | I11: ='STEP 5--Choose P'!I18 -> 20.5 | J11: ='STEP 5--Choose P'!J18 -> 13.66666667 | K11: =('STEP 3--Nutrient Needs'!D11/C11)-VLOOKUP('STEP 4--Choose N'!D2,'N lookup'!A2:Q47,12,FALSE)/C11 -> 
A12: ='STEP 5--Choose P'!A19 -> Custom 5-5-5 | B12: ='STEP 5--Choose P'!B19 -> 0.05 | C12: ='STEP 5--Choose P'!C19 -> 0.05 | D12: ='STEP 5--Choose P'!D19 -> 0.05 | E12: ='STEP 5--Choose P'!E19 -> 0 | F12: ='STEP 5--Choose P'!F19 -> 0 | G12: ='STEP 5--Choose P'!G19 -> 0 | H12: ='STEP 5--Choose P'!H19 -> med | I12: ='STEP 5--Choose P'!I19 -> 27 | J12: ='STEP 5--Choose P'!J19 -> 10.8 | K12: =('STEP 3--Nutrient Needs'!D11/C12)-VLOOKUP('STEP 4--Choose N'!D2,'N lookup'!A2:Q47,12,FALSE)/C12 ->  | M12: =K12*E12 ->  | N12: =K12*F12 ->  | O12: =K12*G12 -> 
A13: ='STEP 5--Choose P'!A20 -> Pro-Start | B13: ='STEP 5--Choose P'!B20 -> 0.02 | C13: ='STEP 5--Choose P'!C20 -> 0.03 | D13: ='STEP 5--Choose P'!D20 -> 0.03 | E13: ='STEP 5--Choose P'!E20 -> 0 | F13: ='STEP 5--Choose P'!F20 -> 0 | G13: ='STEP 5--Choose P'!G20 -> 0 | H13: ='STEP 5--Choose P'!H20 -> med/ rapid | I13: ='STEP 5--Choose P'!I20 -> 17 | J13: ='STEP 5--Choose P'!J20 -> 11.33333333 | K13: =('STEP 3--Nutrient Needs'!D11/C13)-VLOOKUP('STEP 4--Choose N'!D2,'N lookup'!A2:Q47,12,FALSE)/C13 ->  | M13: =K13*E13 ->  | O13: =G13*K13 -> 
A14: ='STEP 5--Choose P'!A21 -> Pro-Gro | B14: ='STEP 5--Choose P'!B21 -> 0.05 | C14: ='STEP 5--Choose P'!C21 -> 0.03 | D14: ='STEP 5--Choose P'!D21 -> 0.04 | E14: ='STEP 5--Choose P'!E21 -> 0 | F14: ='STEP 5--Choose P'!F21 -> 0 | G14: ='STEP 5--Choose P'!G21 -> 0 | H14: ='STEP 5--Choose P'!H21 -> med | I14: ='STEP 5--Choose P'!I21 -> 22.5 | J14: ='STEP 5--Choose P'!J21 -> 15 | K14: =('STEP 3--Nutrient Needs'!D11/C14)-VLOOKUP('STEP 4--Choose N'!D2,'N lookup'!A2:Q47,12,FALSE)/C14 -> 
A15: ='STEP 5--Choose P'!A22 -> NONE NEEDED | B15: ='STEP 5--Choose P'!B22 -> 0 | C15: ='STEP 5--Choose P'!C22 -> 0 | D15: ='STEP 5--Choose P'!D22 -> 0 | E15: ='STEP 5--Choose P'!E22 -> 0 | F15: ='STEP 5--Choose P'!F22 -> 0 | G15: ='STEP 5--Choose P'!G22 -> 0 | H15: ='STEP 5--Choose P'!H22 -> 0 | I15: ='STEP 5--Choose P'!I22 -> 0 | J15: ='STEP 5--Choose P'!J22 -> 0 | K15: 0 | L15: 0 | M15: 0 | N15: 0 | O15: 0 | P15: 0
A16: ='STEP 5--Choose P'!A23 -> OTHER--enter Name in this cell, analysis and price to right--> | B16: ='STEP 5--Choose P'!B23 -> 0 | C16: ='STEP 5--Choose P'!C23 -> 0 | D16: ='STEP 5--Choose P'!D23 -> 0 | E16: ='STEP 5--Choose P'!E23 -> 0 | F16: ='STEP 5--Choose P'!F23 -> 0 | G16: ='STEP 5--Choose P'!G23 -> 0 | H16: ='STEP 5--Choose P'!H23 -> 0 | I16: ='STEP 5--Choose P'!I23 -> 0 | J16: ='STEP 5--Choose P'!J23 ->  | K16: =('STEP 3--Nutrient Needs'!D11/C16)-VLOOKUP('STEP 4--Choose N'!D2,'N lookup'!A2:Q47,12,FALSE)/C16 -> 
P17: 0

Sheet STEP 6--Choose K
A1: Instructions: Select your potash amendments from the drop down menu in the yellow cell after reviewing the chart below.
A2: Select Your Potash Amendments ---> | E2: NONE NEEDED
A3: Your N and P205 selections contribute | D3: =VLOOKUP('STEP 4--Choose N'!D2,'N lookup'!A2:Q47,13,FALSE)+VLOOKUP('STEP 5--Choose P'!D2,'P lookup'!A2:L16,12,FALSE) ->  | E3: lbs K20/ acre
A4: You still need to add | D4: =('STEP 3--Nutrient Needs'!E11)-(VLOOKUP('STEP 4--Choose N'!D2,'N lookup'!A2:Q47,13,FALSE)+VLOOKUP('STEP 5--Choose P'!D2,'P lookup'!A2:L16,12,FALSE)) ->  | E4: lbs K20/ acre
A5: POSSIBLE POTASH AMENDMENTS
A6: ='Appendix--Fertilizer Costs'!A1 -> MATERIAL | B6: ='Appendix--Fertilizer Costs'!B1 -> % N | C6: ='Appendix--Fertilizer Costs'!C1 -> % P2O5 | D6: ='Appendix--Fertilizer Costs'!D1 -> % K20 | E6: ='Appendix--Fertilizer Costs'!E1 -> % Ca | F6: ='Appendix--Fertilizer Costs'!F1 -> % Mg | G6: ='Appendix--Fertilizer Costs'!G1 -> % S | H6: ='Appendix--Fertilizer Costs'!H1 -> Release Rate | I6: ='Appendix--Fertilizer Costs'!I1 -> Price per 50 lb | J6: ='Appendix--Fertilizer Costs'!L1 -> $/lb K
A7: ='Appendix--Fertilizer Costs'!A10 -> Dehydrated Poultry Manure (Kreher's or other) | B7: ='Appendix--Fertilizer Costs'!B10 -> 0.05 | C7: ='Appendix--Fertilizer Costs'!C10 -> 0.04 | D7: ='Appendix--Fertilizer Costs'!D10 -> 0.03 | E7: ='Appendix--Fertilizer Costs'!E10 -> 0.09 | F7: ='Appendix--Fertilizer Costs'!F10 -> 0 | G7: ='Appendix--Fertilizer Costs'!G10 -> 0 | H7: ='Appendix--Fertilizer Costs'!H10 -> med | I7: ='Appendix--Fertilizer Costs'!I10 -> 15 | J7: ='Appendix--Fertilizer Costs'!L10 -> 10
A8: ='Appendix--Fertilizer Costs'!A11 -> Dehydrated High-K Blend Poultry Manure (Kreher's or other) | B8: ='Appendix--Fertilizer Costs'!B11 -> 0.04 | C8: ='Appendix--Fertilizer Costs'!C11 -> 0.03 | D8: ='Appendix--Fertilizer Costs'!D11 -> 0.1 | E8: ='Appendix--Fertilizer Costs'!E11 -> 0 | F8: ='Appendix--Fertilizer Costs'!F11 -> 0 | G8: ='Appendix--Fertilizer Costs'!G11 -> 0 | H8: ='Appendix--Fertilizer Costs'!H11 -> med | I8: ='Appendix--Fertilizer Costs'!I11 -> 15 | J8: ='Appendix--Fertilizer Costs'!L11 -> 3
A9: ='Appendix--Fertilizer Costs'!A21 -> Granite dust | B9: ='Appendix--Fertilizer Costs'!B21 -> 0 | C9: ='Appendix--Fertilizer Costs'!C21 -> 0 | D9: ='Appendix--Fertilizer Costs'!D21 -> 0.06 | E9: ='Appendix--Fertilizer Costs'!E21 -> 0 | F9: ='Appendix--Fertilizer Costs'!F21 -> 0.11 | G9: ='Appendix--Fertilizer Costs'!G21 -> 0.22 | H9: ='Appendix--Fertilizer Costs'!H21 -> very slow | I9: ='Appendix--Fertilizer Costs'!I21 -> 89 | J9: ='Appendix--Fertilizer Costs'!L21 -> 29.66666667
A10: ='Appendix--Fertilizer Costs'!A22 -> Greensand | B10: ='Appendix--Fertilizer Costs'!B22 -> 0 | C10: ='Appendix--Fertilizer Costs'!C22 -> 0.01 | D10: ='Appendix--Fertilizer Costs'!D22 -> 0.07 | E10: ='Appendix--Fertilizer Costs'!E22 -> 0 | F10: ='Appendix--Fertilizer Costs'!F22 -> 0 | G10: ='Appendix--Fertilizer Costs'!G22 -> 0 | H10: ='Appendix--Fertilizer Costs'!H22 -> very slow | I10: ='Appendix--Fertilizer Costs'!I22 -> 31.5 | J10: ='Appendix--Fertilizer Costs'!L22 -> 9
A11: ='Appendix--Fertilizer Costs'!A24 -> K-mag | B11: ='Appendix--Fertilizer Costs'!B24 -> 0 | C11: ='Appendix--Fertilizer Costs'!C24 -> 0 | D11: ='Appendix--Fertilizer Costs'!D24 -> 0.22 | E11: ='Appendix--Fertilizer Costs'!E24 -> 0 | F11: ='Appendix--Fertilizer Costs'!F24 -> 0.11 | G11: ='Appendix--Fertilizer Costs'!G24 -> 0.22 | H11: ='Appendix--Fertilizer Costs'!H24 -> rapid | I11: ='Appendix--Fertilizer Costs'!I24 -> 38 | J11: ='Appendix--Fertilizer Costs'!L24 -> 3.454545455
A12: ='Appendix--Fertilizer Costs'!A27 -> Peanut meal | B12: ='Appendix--Fertilizer Costs'!B27 -> 0.08 | C12: ='Appendix--Fertilizer Costs'!C27 -> 0.01 | D12: ='Appendix--Fertilizer Costs'!D27 -> 0.02 | E12: ='Appendix--Fertilizer Costs'!E27 -> 0 | F12: ='Appendix--Fertilizer Costs'!F27 -> 0 | G12: ='Appendix--Fertilizer Costs'!G27 -> 0 | H12: ='Appendix--Fertilizer Costs'!H27 -> slow/ med | I12: ='Appendix--Fertilizer Costs'!I27 -> 37 | J12: ='Appendix--Fertilizer Costs'!L27 -> 37
A13: ='Appendix--Fertilizer Costs'!A29 -> Potassium chloride | B13: ='Appendix--Fertilizer Costs'!B29 -> 0 | C13: ='Appendix--Fertilizer Costs'!C29 -> 0 | D13: ='Appendix--Fertilizer Costs'!D29 -> 0.6 | E13: ='Appendix--Fertilizer Costs'!E29 -> 0 | F13: ='Appendix--Fertilizer Costs'!F29 -> 0 | G13: ='Appendix--Fertilizer Costs'!G29 -> 0 | H13: ='Appendix--Fertilizer Costs'!H29 -> rapid | I13: ='Appendix--Fertilizer Costs'!I29 -> 15 | J13: ='Appendix--Fertilizer Costs'!L29 -> 0.5
A14: ='Appendix--Fertilizer Costs'!A32 -> Sulfate of potash | B14: ='Appendix--Fertilizer Costs'!B32 -> 0 | C14: ='Appendix--Fertilizer Costs'!C32 -> 0 | D14: ='Appendix--Fertilizer Costs'!D32 -> 0.5 | E14: ='Appendix--Fertilizer Costs'!E32 -> 0 | F14: ='Appendix--Fertilizer Costs'!F32 -> 0 | G14: ='Appendix--Fertilizer Costs'!G32 -> 0.17 | H14: ='Appendix--Fertilizer Costs'!H32 -> rapid | I14: ='Appendix--Fertilizer Costs'!I32 -> 51 | J14: ='Appendix--Fertilizer Costs'!L32 -> 2.04
A15: ='Appendix--Fertilizer Costs'!A36 -> Blended fertilizers
A16: ='Appendix--Fertilizer Costs'!A37 -> Cheep Cheep | B16: ='Appendix--Fertilizer Costs'!B37 -> 0.04 | C16: ='Appendix--Fertilizer Costs'!C37 -> 0.03 | D16: ='Appendix--Fertilizer Costs'!D37 -> 0.03 | E16: ='Appendix--Fertilizer Costs'!E37 -> 0 | F16: ='Appendix--Fertilizer Costs'!F37 -> 0 | G16: ='Appendix--Fertilizer Costs'!G37 -> 0 | H16: ='Appendix--Fertilizer Costs'!H37 -> med | I16: ='Appendix--Fertilizer Costs'!I37 -> 20.5 | J16: ='Appendix--Fertilizer Costs'!L37 -> 13.66666667
A17: ='Appendix--Fertilizer Costs'!A38 -> Custom 5-5-5 | B17: ='Appendix--Fertilizer Costs'!B38 -> 0.05 | C17: ='Appendix--Fertilizer Costs'!C38 -> 0.05 | D17: ='Appendix--Fertilizer Costs'!D38 -> 0.05 | E17: ='Appendix--Fertilizer Costs'!E38 -> 0 | F17: ='Appendix--Fertilizer Costs'!F38 -> 0 | G17: ='Appendix--Fertilizer Costs'!G38 -> 0 | H17: ='Appendix--Fertilizer Costs'!H38 -> med | I17: ='Appendix--Fertilizer Costs'!I38 -> 27 | J17: ='Appendix--Fertilizer Costs'!L38 -> 10.8
A18: ='Appendix--Fertilizer Costs'!A39 -> Custom 6-0-6 | B18: ='Appendix--Fertilizer Costs'!B39 -> 0.06 | C18: ='Appendix--Fertilizer Costs'!C39 -> 0 | D18: ='Appendix--Fertilizer Costs'!D39 -> 0.06 | E18: ='Appendix--Fertilizer Costs'!E39 -> 0 | F18: ='Appendix--Fertilizer Costs'!F39 -> 0 | G18: ='Appendix--Fertilizer Costs'!G39 -> 0 | H18: ='Appendix--Fertilizer Costs'!H39 -> med | I18: ='Appendix--Fertilizer Costs'!I39 -> 28.5 | J18: ='Appendix--Fertilizer Costs'!L39 -> 9.5
A19: ='Appendix--Fertilizer Costs'!A40 -> Pro-Start | B19: ='Appendix--Fertilizer Costs'!B40 -> 0.02 | C19: ='Appendix--Fertilizer Costs'!C40 -> 0.03 | D19: ='Appendix--Fertilizer Costs'!D40 -> 0.03 | E19: ='Appendix--Fertilizer Costs'!E40 -> 0 | F19: ='Appendix--Fertilizer Costs'!F40 -> 0 | G19: ='Appendix--Fertilizer Costs'!G40 -> 0 | H19: ='Appendix--Fertilizer Costs'!H40 -> med/ rapid | I19: ='Appendix--Fertilizer Costs'!I40 -> 17 | J19: ='Appendix--Fertilizer Costs'!L40 -> 11.33333333
A20: ='Appendix--Fertilizer Costs'!A42 -> Pro-Gro | B20: ='Appendix--Fertilizer Costs'!B42 -> 0.05 | C20: ='Appendix--Fertilizer Costs'!C42 -> 0.03 | D20: ='Appendix--Fertilizer Costs'!D42 -> 0.04 | E20: ='Appendix--Fertilizer Costs'!E42 -> 0 | F20: ='Appendix--Fertilizer Costs'!F42 -> 0 | G20: ='Appendix--Fertilizer Costs'!G42 -> 0 | H20: ='Appendix--Fertilizer Costs'!H42 -> med | I20: ='Appendix--Fertilizer Costs'!I42 -> 22.5 | J20: ='Appendix--Fertilizer Costs'!L42 -> 11.25
A21: NONE NEEDED | B21: 0 | C21: 0 | D21: 0 | I21: 0
A22: OTHER--enter Name in this cell, analysis and price to right--> | J22: =I22/D22/50 -> 
A24: Blue shading indicates an organic material, but check with your certifying agency before using.

Sheet K lookup (hidden)
A1: ='STEP 6--Choose K'!A6 -> MATERIAL | B1: ='STEP 6--Choose K'!B6 -> % N | C1: ='STEP 6--Choose K'!C6 -> % P2O5 | D1: ='STEP 6--Choose K'!D6 -> % K20 | E1: ='STEP 6--Choose K'!E6 -> % Ca | F1: ='STEP 6--Choose K'!F6 -> % Mg | G1: ='STEP 6--Choose K'!G6 -> % S | H1: ='STEP 6--Choose K'!H6 -> Release Rate | I1: ='STEP 6--Choose K'!I6 -> Price per 50 lb | J1: ='STEP 6--Choose K'!J6 -> $/lb K | K1: Pounds of K20 fertilizer per acre (accounts for any K20 in your N&P fertilizer selection) | L1: PoundsCa | M1: Pounds Mg | N1: Pounds S | O1: Estimated Cost
A2: ='STEP 6--Choose K'!A7 -> Dehydrated Poultry Manure (Kreher's or other) | B2: ='STEP 6--Choose K'!B7 -> 0.05 | C2: ='STEP 6--Choose K'!C7 -> 0.04 | D2: ='STEP 6--Choose K'!D7 -> 0.03 | E2: ='STEP 6--Choose K'!E7 -> 0.09 | F2: ='STEP 6--Choose K'!F7 -> 0 | G2: ='STEP 6--Choose K'!G7 -> 0 | H2: ='STEP 6--Choose K'!H7 -> med | I2: ='STEP 6--Choose K'!I7 -> 15 | J2: ='STEP 6--Choose K'!J7 -> 10 | K2: =('STEP 3--Nutrient Needs'!E11/D2)-((VLOOKUP('STEP 4--Choose N'!D2,'N lookup'!A2:Q47,13,FALSE)+VLOOKUP('STEP 5--Choose P'!D2,'P lookup'!A2:L16,12,FALSE))/D2) ->  | L2: =K2*E2 ->  | M2: =K2*F2 ->  | N2: =K2*G2 ->  | O2: =K2/50*I2 -> 
A3: ='STEP 6--Choose K'!A8 -> Dehydrated High-K Blend Poultry Manure (Kreher's or other) | B3: ='STEP 6--Choose K'!B8 -> 0.04 | C3: ='STEP 6--Choose K'!C8 -> 0.03 | D3: ='STEP 6--Choose K'!D8 -> 0.1 | E3: ='STEP 6--Choose K'!E8 -> 0 | F3: ='STEP 6--Choose K'!F8 -> 0 | G3: ='STEP 6--Choose K'!G8 -> 0 | H3: ='STEP 6--Choose K'!H8 -> med | I3: ='STEP 6--Choose K'!I8 -> 15 | J3: ='STEP 6--Choose K'!J8 -> 3 | K3: =('STEP 3--Nutrient Needs'!E11/D3)-((VLOOKUP('STEP 4--Choose N'!D2,'N lookup'!A2:Q47,13,FALSE)+VLOOKUP('STEP 5--Choose P'!D2,'P lookup'!A2:L16,12,FALSE))/D3) -> 
A4: ='STEP 6--Choose K'!A9 -> Granite dust | B4: ='STEP 6--Choose K'!B9 -> 0 | C4: ='STEP 6--Choose K'!C9 -> 0 | D4: ='STEP 6--Choose K'!D9 -> 0.06 | E4: ='STEP 6--Choose K'!E9 -> 0 | F4: ='STEP 6--Choose K'!F9 -> 0.11 | G4: ='STEP 6--Choose K'!G9 -> 0.22 | H4: ='STEP 6--Choose K'!H9 -> very slow | I4: ='STEP 6--Choose K'!I9 -> 89 | J4: ='STEP 6--Choose K'!J9 -> 29.66666667 | K4: =('STEP 3--Nutrient Needs'!E11/D4)-((VLOOKUP('STEP 4--Choose N'!D2,'N lookup'!A2:Q47,13,FALSE)+VLOOKUP('STEP 5--Choose P'!D2,'P lookup'!A2:L16,12,FALSE))/D4) -> 
A5: ='STEP 6--Choose K'!A10 -> Greensand | B5: ='STEP 6--Choose K'!B10 -> 0 | C5: ='STEP 6--Choose K'!C10 -> 0.01 | D5: ='STEP 6--Choose K'!D10 -> 0.07 | E5: ='STEP 6--Choose K'!E10 -> 0 | F5: ='STEP 6--Choose K'!F10 -> 0 | G5: ='STEP 6--Choose K'!G10 -> 0 | H5: ='STEP 6--Choose K'!H10 -> very slow | I5: ='STEP 6--Choose K'!I10 -> 31.5 | J5: ='STEP 6--Choose K'!J10 -> 9 | K5: =('STEP 3--Nutrient Needs'!E11/D5)-((VLOOKUP('STEP 4--Choose N'!D2,'N lookup'!A2:Q47,13,FALSE)+VLOOKUP('STEP 5--Choose P'!D2,'P lookup'!A2:L16,12,FALSE))/D5) -> 
A6: ='STEP 6--Choose K'!A11 -> K-mag | B6: ='STEP 6--Choose K'!B11 -> 0 | C6: ='STEP 6--Choose K'!C11 -> 0 | D6: ='STEP 6--Choose K'!D11 -> 0.22 | E6: ='STEP 6--Choose K'!E11 -> 0 | F6: ='STEP 6--Choose K'!F11 -> 0.11 | G6: ='STEP 6--Choose K'!G11 -> 0.22 | H6: ='STEP 6--Choose K'!H11 -> rapid | I6: ='STEP 6--Choose K'!I11 -> 38 | J6: ='STEP 6--Choose K'!J11 -> 3.454545455 | K6: =('STEP 3--Nutrient Needs'!E11/D6)-((VLOOKUP('STEP 4--Choose N'!D2,'N lookup'!A2:Q47,13,FALSE)+VLOOKUP('STEP 5--Choose P'!D2,'P lookup'!A2:L16,12,FALSE))/D6) -> 
A7: ='STEP 6--Choose K'!A12 -> Peanut meal | B7: ='STEP 6--Choose K'!B12 -> 0.08 | C7: ='STEP 6--Choose K'!C12 -> 0.01 | D7: ='STEP 6--Choose K'!D12 -> 0.02 | E7: ='STEP 6--Choose K'!E12 -> 0 | F7: ='STEP 6--Choose K'!F12 -> 0 | G7: ='STEP 6--Choose K'!G12 -> 0 | H7: ='STEP 6--Choose K'!H12 -> slow/ med | I7: ='STEP 6--Choose K'!I12 -> 37 | J7: ='STEP 6--Choose K'!J12 -> 37 | K7: =('STEP 3--Nutrient Needs'!E11/D7)-((VLOOKUP('STEP 4--Choose N'!D2,'N lookup'!A2:Q47,13,FALSE)+VLOOKUP('STEP 5--Choose P'!D2,'P lookup'!A2:L16,12,FALSE))/D7) -> 
A8: ='STEP 6--Choose K'!A13 -> Potassium chloride | B8: ='STEP 6--Choose K'!B13 -> 0 | C8: ='STEP 6--Choose K'!C13 -> 0 | D8: ='STEP 6--Choose K'!D13 -> 0.6 | E8: ='STEP 6--Choose K'!E13 -> 0 | F8: ='STEP 6--Choose K'!F13 -> 0 | G8: ='STEP 6--Choose K'!G13 -> 0 | H8: ='STEP 6--Choose K'!H13 -> rapid | I8: ='STEP 6--Choose K'!I13 -> 15 | J8: ='STEP 6--Choose K'!J13 -> 0.5 | K8: =('STEP 3--Nutrient Needs'!E11/D8)-((VLOOKUP('STEP 4--Choose N'!D2,'N lookup'!A2:Q47,13,FALSE)+VLOOKUP('STEP 5--Choose P'!D2,'P lookup'!A2:L16,12,FALSE))/D8) -> 
A9: ='STEP 6--Choose K'!A14 -> Sulfate of potash | B9: ='STEP 6--Choose K'!B14 -> 0 | C9: ='STEP 6--Choose K'!C14 -> 0 | D9: ='STEP 6--Choose K'!D14 -> 0.5 | E9: ='STEP 6--Choose K'!E14 -> 0 | F9: ='STEP 6--Choose K'!F14 -> 0 | G9: ='STEP 6--Choose K'!G14 -> 0.17 | H9: ='STEP 6--Choose K'!H14 -> rapid | I9: ='STEP 6--Choose K'!I14 -> 51 | J9: ='STEP 6--Choose K'!J14 -> 2.04 | K9: =('STEP 3--Nutrient Needs'!E11/D9)-((VLOOKUP('STEP 4--Choose N'!D2,'N lookup'!A2:Q47,13,FALSE)+VLOOKUP('STEP 5--Choose P'!D2,'P lookup'!A2:L16,12,FALSE))/D9) -> 
A10: ='STEP 6--Choose K'!A15 -> Blended fertilizers
A11: ='STEP 6--Choose K'!A16 -> Cheep Cheep | B11: ='STEP 6--Choose K'!B16 -> 0.04 | C11: ='STEP 6--Choose K'!C16 -> 0.03 | D11: ='STEP 6--Choose K'!D16 -> 0.03 | E11: ='STEP 6--Choose K'!E16 -> 0 | F11: ='STEP 6--Choose K'!F16 -> 0 | G11: ='STEP 6--Choose K'!G16 -> 0 | H11: ='STEP 6--Choose K'!H16 -> med | I11: ='STEP 6--Choose K'!I16 -> 20.5 | J11: ='STEP 6--Choose K'!J16 -> 13.66666667 | K11: =('STEP 3--Nutrient Needs'!E11/D11)-((VLOOKUP('STEP 4--Choose N'!D2,'N lookup'!A2:Q47,13,FALSE)+VLOOKUP('STEP 5--Choose P'!D2,'P lookup'!A2:L16,12,FALSE))/D11) ->  | L11: =K11*E11 ->  | M11: =K11*F11 ->  | N11: =K11*G11 ->  | O11: =K11/50*I11 -> 
A12: ='STEP 6--Choose K'!A17 -> Custom 5-5-5 | B12: ='STEP 6--Choose K'!B17 -> 0.05 | C12: ='STEP 6--Choose K'!C17 -> 0.05 | D12: ='STEP 6--Choose K'!D17 -> 0.05 | E12: ='STEP 6--Choose K'!E17 -> 0 | F12: ='STEP 6--Choose K'!F17 -> 0 | G12: ='STEP 6--Choose K'!G17 -> 0 | H12: ='STEP 6--Choose K'!H17 -> med | I12: ='STEP 6--Choose K'!I17 -> 27 | J12: ='STEP 6--Choose K'!J17 -> 10.8 | K12: =('STEP 3--Nutrient Needs'!E11/D12)-((VLOOKUP('STEP 4--Choose N'!D2,'N lookup'!A2:Q47,13,FALSE)+VLOOKUP('STEP 5--Choose P'!D2,'P lookup'!A2:L16,12,FALSE))/D12) ->  | L12: =K12*E12 ->  | M12: =K12*F12 ->  | N12: =K12*G12 -> 
A13: ='STEP 6--Choose K'!A18 -> Custom 6-0-6 | B13: ='STEP 6--Choose K'!B18 -> 0.06 | C13: ='STEP 6--Choose K'!C18 -> 0 | D13: ='STEP 6--Choose K'!D18 -> 0.06 | E13: ='STEP 6--Choose K'!E18 -> 0 | F13: ='STEP 6--Choose K'!F18 -> 0 | G13: ='STEP 6--Choose K'!G18 -> 0 | H13: ='STEP 6--Choose K'!H18 -> med | I13: ='STEP 6--Choose K'!I18 -> 28.5 | J13: ='STEP 6--Choose K'!J18 -> 9.5 | K13: =('STEP 3--Nutrient Needs'!E11/D13)-((VLOOKUP('STEP 4--Choose N'!D2,'N lookup'!A2:Q47,13,FALSE)+VLOOKUP('STEP 5--Choose P'!D2,'P lookup'!A2:L16,12,FALSE))/D13) ->  | L13: =K13*E13 ->  | M13: =K13*F13 ->  | N13: =K13*G13 -> 
A14: ='STEP 6--Choose K'!A19 -> Pro-Start | B14: ='STEP 6--Choose K'!B19 -> 0.02 | C14: ='STEP 6--Choose K'!C19 -> 0.03 | D14: ='STEP 6--Choose K'!D19 -> 0.03 | E14: ='STEP 6--Choose K'!E19 -> 0 | F14: ='STEP 6--Choose K'!F19 -> 0 | G14: ='STEP 6--Choose K'!G19 -> 0 | H14: ='STEP 6--Choose K'!H19 -> med/ rapid | I14: ='STEP 6--Choose K'!I19 -> 17 | J14: ='STEP 6--Choose K'!J19 -> 11.33333333 | K14: =('STEP 3--Nutrient Needs'!E11/D14)-((VLOOKUP('STEP 4--Choose N'!D2,'N lookup'!A2:Q47,13,FALSE)+VLOOKUP('STEP 5--Choose P'!D2,'P lookup'!A2:L16,12,FALSE))/D14) ->  | L14: =K14*E14 ->  | M14: =K14*F14 ->  | N14: =K14*G14 -> 
A15: ='STEP 6--Choose K'!A20 -> Pro-Gro | B15: ='STEP 6--Choose K'!B20 -> 0.05 | C15: ='STEP 6--Choose K'!C20 -> 0.03 | D15: ='STEP 6--Choose K'!D20 -> 0.04 | E15: ='STEP 6--Choose K'!E20 -> 0 | F15: ='STEP 6--Choose K'!F20 -> 0 | G15: ='STEP 6--Choose K'!G20 -> 0 | H15: ='STEP 6--Choose K'!H20 -> med | I15: ='STEP 6--Choose K'!I20 -> 22.5 | J15: ='STEP 6--Choose K'!J20 -> 11.25 | K15: =('STEP 3--Nutrient Needs'!E11/D15)-((VLOOKUP('STEP 4--Choose N'!D2,'N lookup'!A2:Q47,13,FALSE)+VLOOKUP('STEP 5--Choose P'!D2,'P lookup'!A2:L16,12,FALSE))/D15) ->  | L15: =K15*E15 ->  | M15: =K15*F15 ->  | N15: =K15*G15 -> 
A16: ='STEP 6--Choose K'!A21 -> NONE NEEDED | B16: ='STEP 6--Choose K'!B21 -> 0 | C16: ='STEP 6--Choose K'!C21 -> 0 | D16: ='STEP 6--Choose K'!D21 -> 0 | E16: ='STEP 6--Choose K'!E21 -> 0 | F16: ='STEP 6--Choose K'!F21 -> 0 | G16: ='STEP 6--Choose K'!G21 -> 0 | H16: ='STEP 6--Choose K'!H21 -> 0 | I16: ='STEP 6--Choose K'!I21 -> 0 | J16: ='STEP 6--Choose K'!J21 -> 0 | K16: 0 | L16: 0 | M16: 0 | N16: 0 | O16: 0
A17: ='STEP 6--Choose K'!A22 -> OTHER--enter Name in this cell, analysis and price to right--> | B17: ='STEP 6--Choose K'!B22 -> 0 | C17: ='STEP 6--Choose K'!C22 -> 0 | D17: ='STEP 6--Choose K'!D22 -> 0 | E17: ='STEP 6--Choose K'!E22 -> 0 | F17: ='STEP 6--Choose K'!F22 -> 0 | G17: ='STEP 6--Choose K'!G22 -> 0 | H17: ='STEP 6--Choose K'!H22 -> 0 | I17: ='STEP 6--Choose K'!I22 -> 0 | J17: ='STEP 6--Choose K'!J22 ->  | K17: =('STEP 3--Nutrient Needs'!E11/D16)-((VLOOKUP('STEP 4--Choose N'!D2,'N lookup'!A2:Q47,13,FALSE)+VLOOKUP('STEP 5--Choose P'!D2,'P lookup'!A2:L16,12,FALSE))/D17) ->  | L17: =K17*E17 ->  | M17: =K17*F17 ->  | N17: =K17*G17 -> 

Sheet STEP 7--Fertilizer Costs
A1: The chart below collects the fertilizer you selected on the other worksheets for a total volume and cost of ammending the area specified in Step 1.
B3: Fertilizer | C3: Pounds of fertilizer to add per acre | D3: Relative availability of fertilizer | E3: Estimated cost of fertilizer per acre | F3: Pounds of fertilizer for your field | G3: Estimated cost of fertilizer for your field
A4: N--> | B4: ='STEP 4--Choose N'!D2 -> 0 | C4: =ROUNDUP(VLOOKUP('STEP 4--Choose N'!D2,'N lookup'!A2:Q47,11,FALSE),-2) ->  | D4: =VLOOKUP('STEP 4--Choose N'!D2,'N lookup'!A2:Q47,8,FALSE) ->  | E4: =ROUNDUP(VLOOKUP('STEP 4--Choose N'!D2,'N lookup'!A2:Q47,17,FALSE),-1) ->  | F4: =ROUNDUP(VLOOKUP('STEP 4--Choose N'!D2,'N lookup'!A2:Q47,11,FALSE),-2)*'STEP 1--Field Information'!F23 ->  | G4: =ROUNDUP(VLOOKUP('STEP 4--Choose N'!D2,'N lookup'!A2:Q47,17,FALSE),-1)*'STEP 1--Field Information'!F23 -> 
A5: P--> | B5: ='STEP 5--Choose P'!D2 -> NONE NEEDED | C5: =ROUNDUP(VLOOKUP('STEP 5--Choose P'!D2,'P lookup'!A2:P16,11,FALSE),-2) -> 0 | D5: =VLOOKUP('STEP 5--Choose P'!D2,'P lookup'!A2:P16,8,FALSE) -> 0 | E5: =ROUNDUP(VLOOKUP('STEP 5--Choose P'!D2,'P lookup'!A2:P16,16,FALSE),-1) -> 0 | F5: =ROUNDUP(VLOOKUP('STEP 5--Choose P'!D2,'P lookup'!A2:P16,11,FALSE),-2)*'STEP 1--Field Information'!F23 -> 0 | G5: =ROUNDUP(VLOOKUP('STEP 5--Choose P'!D2,'P lookup'!A2:P16,16,FALSE),-1)*'STEP 1--Field Information'!F23 -> 0
A6: K--> | B6: ='STEP 6--Choose K'!E2 -> NONE NEEDED | C6: =ROUNDUP(VLOOKUP('STEP 6--Choose K'!E2,'K lookup'!A2:P17,11,FALSE),-1) -> 0 | D6: =VLOOKUP('STEP 6--Choose K'!E2,'K lookup'!A2:P17,8,FALSE) -> 0 | E6: =ROUNDUP(VLOOKUP('STEP 6--Choose K'!E2,'K lookup'!A2:P17,15,FALSE),-1) -> 0 | F6: =ROUNDUP(VLOOKUP('STEP 6--Choose K'!E2,'K lookup'!A2:P17,11,FALSE),-1)*'STEP 1--Field Information'!F23 -> 0 | G6: =ROUNDUP(VLOOKUP('STEP 6--Choose K'!E2,'K lookup'!A2:P17,15,FALSE),-1)*'STEP 1--Field Information'!F23 -> 0
B7: Cost per acre | E7: =SUM(E4:E6) -> 
A10: TOTAL FERTILIZER COST for your field | G10: =SUM(E4:E6)*'STEP 1--Field Information'!F23 -> 

Sheet Calcium (hidden)

Sheet Magnesium (hidden)

Sheet Sulfur (hidden)

Sheet Trace Element (hidden)

Sheet STEP 8--Amendment Plan
A1: Instructions: The information below will autofill from the calculator. Once you complete the calculator for each field, click "Save Line" in the left hand column, and the information will be saved in the line below. You may then start the calculator again for your next field.
A3: click here to save line for each field: | B3: Field Name | C3: Size (acre equivalents) | D3: Crop | E3: pH | F3: Lime needed (pounds per field) | G3: lb/ acre N | H3: N Amendment | I3: lb/ field N Amendment | J3: lb/ acre P205 | K3: P205 Amendment | L3: lb/ field P205 Amendment | M3: Recommended lb/ field unit K20 | N3: K20 Amendment | O3: lb/ field K20 Amendment | P3: Estimated cost of Amendments per field | Q3: Pounds Ca contributed by selected fertilizlers | R3: Pounds Mg contributed by selected fertilizlers | S3: Pounds S contributed by selected fertilizlers
B4: ='STEP 1--Field Information'!E6 -> 0 | C4: ='STEP 1--Field Information'!F23 -> 1 | D4: ='STEP 1--Field Information'!E8 -> Mixed Vegetable | E4: ='STEP 2--Soil Test Information'!B4 -> 0 | F4: =('STEP 2--Soil Test Information'!B21*C4)*2000 -> 0 | G4: ='STEP 3--Nutrient Needs'!C11 -> 100 | H4: ='STEP 4--Choose N'!D2 -> 0 | I4: ='STEP 7--Fertilizer Costs'!F4 ->  | J4: ='STEP 3--Nutrient Needs'!D11 ->  | K4: ='STEP 5--Choose P'!D2 -> NONE NEEDED | L4: ='STEP 7--Fertilizer Costs'!F5 -> 0 | M4: ='STEP 3--Nutrient Needs'!E11 ->  | N4: ='STEP 6--Choose K'!E2 -> NONE NEEDED | O4: ='STEP 7--Fertilizer Costs'!F6 -> 0 | P4: =(ROUNDUP(VLOOKUP('STEP 4--Choose N'!D2,'N lookup'!A2:Q47,17,FALSE),-1)+ROUNDUP(VLOOKUP('STEP 5--Choose P'!D2,'P lookup'!A2:P16,16,FALSE),-1)+ROUNDUP(VLOOKUP('STEP 6--Choose K'!E2,'K lookup'!A2:P17,15,FALSE),-1))*'STEP 1--Field Information'!F23 ->  | Q4: =C4*(VLOOKUP('STEP 5--Choose P'!D2,'P lookup'!A2:P16,13,FALSE)+VLOOKUP('STEP 4--Choose N'!D2,'N lookup'!A2:Q47,14,FALSE)+VLOOKUP('STEP 6--Choose K'!E2,'K lookup'!A2:P17,12,FALSE)) ->  | R4: =C4*(VLOOKUP('STEP 5--Choose P'!D2,'P lookup'!A2:P16,14,FALSE)+VLOOKUP('STEP 4--Choose N'!D2,'N lookup'!A2:Q47,15,FALSE)+VLOOKUP('STEP 6--Choose K'!E2,'K lookup'!A2:P17,13,FALSE)) ->  | S4: =C4*(VLOOKUP('STEP 5--Choose P'!D2,'P lookup'!A2:P16,15,FALSE)+VLOOKUP('STEP 4--Choose N'!D2,'N lookup'!A2:Q47,16,FALSE)+VLOOKUP('STEP 6--Choose K'!E2,'K lookup'!A2:P17,14,FALSE)) -> 

Sheet Appendix--Fertilizer Costs
A1: MATERIAL | B1: % N | C1: % P2O5 | D1: % K20 | E1: % Ca | F1: % Mg | G1: % S | H1: Release Rate | I1: Price per 50 lb | J1: $/lb N | K1: $/lb P | L1: $/lb K
A2: Alfalfa meal | B2: 0.03 | C2: 0.005 | D2: 0.025 | H2: slow/ med | I2: 30 | J2: =I2*2/(B2*100) -> 20 | K2: =I2*2/(C2*100) -> 120 | L2: =I2*2/(D2*100) -> 24
A3: Ammonium sulfate | B3: 0.21 | G3: 0.23 | H3: rapid | I3: 10.7 | J3: =I3*2/(B3*100) -> 1.019047619
A4: Blood meal | B4: 0.12 | C4: 0.01 | D4: 0.005 | H4: med/ rapid | I4: 68 | J4: 11.33333333 | K4: =I4*2/(C4*100) -> 136 | L4: =I4*2/(D4*100) -> 272
A5: Bone char | C5: 0.16 | H5: med | I5: 34 | K5: =I5*2/(C5*100) -> 4.25
A6: Bone meal | B6: 0.03 | C6: 0.2 | H6: med | I6: 39 | J6: 26 | K6: =I6*2/(C6*100) -> 3.9
A7: Calcitic limestone | E7: 0.38 | H7: med
A8: Calcium nitrate | B8: 0.15 | E8: 0.19 | H8: rapid | I8: 21.85 | J8: 2.913333333
A9: Chilean nitrate | B9: 0.15 | D9: 0.02 | H9: rapid | I9: 45 | J9: 6 | L9: =I9*2/(D9*100) -> 45
A10: Dehydrated Poultry Manure (Kreher's or other) | B10: 0.05 | C10: 0.04 | D10: 0.03 | E10: 0.09 | H10: med | I10: 15 | J10: 6 | K10: =I10*2/(C10*100) -> 7.5 | L10: =I10*2/(D10*100) -> 10
A11: Dehydrated High-K Blend Poultry Manure (Kreher's or other) | B11: 0.04 | C11: 0.03 | D11: 0.1 | H11: med | I11: 15 | J11: 7.5 | K11: =I11*2/(C11*100) -> 10 | L11: =I11*2/(D11*100) -> 3
A12: Diammonium phosphate | C12: 0.46 | H12: rapid | I12: =473/40 -> 11.825 | K12: =I12*2/(C12*100) -> 0.5141304348
A13: Dolomitic limestone | E13: 0.25 | F13: 0.1 | H13: med
A14: Elemental sulfur | H14: med
A15: Epsom salts (Mg sulfate) | F15: 0.098 | G15: 0.13 | H15: rapid | I15: 18
A16: Feather meal | B16: 0.12 | H16: med | I16: 50 | J16: 8.333333333
A17: Fish emulsion | B17: 0.05 | C17: 0.02 | H17: rapid | J17: 0 | K17: =I17*2/(C17*100) -> 0
A18: Fish meal | B18: 0.09 | C18: 0.07 | H18: med | I18: 90 | J18: 20 | K18: =I18*2/(C18*100) -> 25.71428571
A19: Grioux's Composted Poultry Manure | B19: 0.02 | C19: 0.03 | D19: 0.015 | E19: 0.07 | F19: 0.01 | G19: 0.05 | H19: med | I19: 2.5 | J19: 2.5 | K19: =I19*2/(C19*100) -> 1.666666667 | L19: =I19*2/(D19*100) -> 3.333333333
A20: Giroux's pellets | B20: 0.04 | C20: 0.03 | D20: 0.02 | H20: med | I20: 8.3 | J20: =I20*2/(B20*100) -> 4.15 | K20: =I20*2/(C20*100) -> 5.533333333 | L20: =I20*2/(D20*100) -> 8.3
A21: Granite dust | D21: 0.06 | F21: 0.11 | G21: 0.22 | H21: very slow | I21: 89 | L21: =I21*2/(D21*100) -> 29.66666667
A22: Greensand | C22: 0.01 | D22: 0.07 | H22: very slow | I22: 31.5 | K22: =I22*2/(C22*100) -> 63 | L22: =I22*2/(D22*100) -> 9
A23: Gypsum | E23: 0.23 | I23: 16.5
A24: K-mag | D24: 0.22 | F24: 0.11 | G24: 0.22 | H24: rapid | I24: 38 | L24: =I24*2/(D24*100) -> 3.454545455
A25: Kelp meal | I25: 69
A26: Naturesafe | B26: 0.13 | C26: 0 | D26: 0 | H26: med | I26: 36.25 | J26: =I26*2/(B26*100) -> 5.576923077
A27: Peanut meal | B27: 0.08 | C27: 0.01 | D27: 0.02 | H27: slow/ med | I27: 37 | J27: 9.25 | K27: =I27*2/(C27*100) -> 74 | L27: =I27*2/(D27*100) -> 37
A28: Planter's II Trace Minerals | D28: 0.0009 | E28: 0.05 | G28: 0.05 | I28: 38
A29: Potassium chloride | D29: 0.6 | H29: rapid | I29: =0.3*50 -> 15 | L29: =I29*2/(D29*100) -> 0.5
A30: Rock phosphate | C30: 0.05 | H30: very slow | I30: 24 | K30: =I30*2/(C30*100) -> 9.6
A31: Soybean meal | B31: 0.07 | C31: 0.02 | D31: 0.01 | F31: 0.03 | H31: slow/ med | I31: 17 | J31: 4.857142857 | K31: =I31*2/(C31*100) -> 17 | L31: =I31*2/(D31*100) -> 34
A32: Sulfate of potash | D32: 0.5 | G32: 0.17 | H32: rapid | I32: 51 | L32: =I32*2/(D32*100) -> 2.04
A33: Triple super phosphate | C33: 0.46 | H33: rapid | I33: 21 | K33: =I33*2/(C33*100) -> 0.9130434783
A34: Urea | B34: 0.46 | H34: rapid | I34: 20 | J34: 0.8695652174
A35: Sufur, granular | G35: 0.9 | H35: slow/ med | I35: 28
A36: Blended fertilizers
A37: Cheep Cheep | B37: 0.04 | C37: 0.03 | D37: 0.03 | H37: med | I37: 20.5 | J37: 10.25 | K37: =I37*2/(C37*100) -> 13.66666667 | L37: =I37*2/(D37*100) -> 13.66666667
A38: Custom 5-5-5 | B38: 0.05 | C38: 0.05 | D38: 0.05 | H38: med | I38: 27 | J38: 10.8 | K38: =I38*2/(C38*100) -> 10.8 | L38: =I38*2/(D38*100) -> 10.8
A39: Custom 6-0-6 | B39: 0.06 | D39: 0.06 | H39: med | I39: 28.5 | J39: 9.5 | L39: =I39*2/(D39*100) -> 9.5
A40: Pro-Start | B40: 0.02 | C40: 0.03 | D40: 0.03 | H40: med/ rapid | I40: 17 | J40: 17 | K40: =I40*2/(C40*100) -> 11.33333333 | L40: =I40*2/(D40*100) -> 11.33333333
A41: Pro-Booster | B41: 0.1 | H41: med/ rapid | I41: 32 | J41: 6.4
A42: Pro-Gro | B42: 0.05 | C42: 0.03 | D42: 0.04 | H42: med | I42: 22.5 | J42: 9 | K42: =I42*2/(C42*100) -> 15 | L42: =I42*2/(D42*100) -> 11.25

Sheet Cost per pound of Nutrients (hidden)
A1: MATERIAL | B1: % N | C1: %P2 O5 | D1: %K20 | E1: %Ca | F1: %Mg | G1: %S | H1: Relative Availability | I1: Price per 50 lb (2015) | J1: Price per pound of N | K1: Price per pound of P | L1: Price per pound of K
A2: Bagged Amendments
A3: Alfalfa meal | B3: 0.03 | C3: 0.005 | D3: 0.025 | H3: Slow/ med | I3: 31 | J3: =I3*2/3 -> 20.66666667 | K3: =62/0.5 -> 124 | L3: =62/2.5 -> 24.8
A4: Ammonium Nitrate | B4: 0.34 | H4: rapid | I4: 12 | J4: =24/34 -> 0.7058823529
A5: Ammonium Sulfate | B5: 0.21 | G5: 0.23 | H5: rapid
A6: Blood Meal | B6: 0.12 | C6: 0.01 | D6: 0.005 | H6: med/ rapid | I6: 82 | J6: =164/12 -> 13.66666667 | K6: =164/1 -> 164 | L6: =164/0.5 -> 328
A7: Bone char | C7: 0.16 | H7: med | I7: 16 | K7: =32/16 -> 2
A8: Bone Meal | B8: 0.03 | C8: 0.15 | H8: med | I8: 70 | J8: =140/3 -> 46.66666667 | K8: =140/15 -> 9.333333333
A9: Calcitic Limestone | E9: 0.38 | H9: med
A10: Calcium Nitrate | B10: 0.15 | E10: 0.19 | H10: rapid
A11: Chilean Nitrate** | B11: 0.16 | H11: rapid | I11: 50 | J11: =100/16 -> 6.25
A12: Diammonium phosphate (DAP) | C12: 0.46 | H12: rapid | I12: =473/40 -> 11.825 | K12: =11.83*2/46 -> 0.5143478261
A13: Dolomitic Limestone | E13: 0.25 | F13: 0.1 | H13: med
A14: Elemental Sulfur | H14: ?
A15: Epsom Salts | F15: 0.098 | G15: 0.13 | H15: rapid
A16: Feather meal | B16: 0.12 | H16: med | I16: 50 | J16: =100/12 -> 8.333333333
A17: Fish Emulsion | B17: 0.05 | C17: 0.02 | H17: rapid
A18: Fish Meal | B18: 0.09 | C18: 0.07 | I18: 90
A19: Granite dust | D19: 0.06 | F19: 0.11 | G19: 0.22 | H19: very slow | I19: 89
A20: Greensand | C20: 0.01 | D20: 0.07 | H20: very slow | I20: 30
A21: Gypsum | E21: 0.23 | I21: 20
A22: Peanut meal | B22: 0.08 | C22: 0.01 | D22: 0.02 | H22: Slow/ med | I22: 31.5 | J22: =63/8 -> 7.875
A23: Pelletized chicken manure | B23: 0.03 | C23: 0.015 | D23: 0.015 | E23: 0.07 | F23: 0.01 | G23: 0.05 | H23: med/ rapid | I23: 12 | J23: =24/3 -> 8 | K23: =24/2 -> 12 | L23: =24/2 -> 12
A24: Potassium Choloride | D24: 0.6 | H24: rapid | I24: =0.3*50 -> 15 | J24: =
A25: Potassium Nitrate | H25: rapid
A26: Potassium Sulfate | D26: 0.5 | G26: 0.17 | H26: rapid | I26: 54 | L26: =108/50 -> 2.16
A27: Pro start | B27: 0.02 | C27: 0.03 | D27: 0.03 | H27: med/ rapid | I27: 15.5 | J27: =31/2 -> 15.5
A28: Probooster | B28: 0.1 | H28: med/ rapid | I28: 38 | J28: =76/10 -> 7.6
A29: Progro | B29: 0.05 | C29: 0.03 | D29: 0.04 | H29: med | I29: 22 | J29: =44/5 -> 8.8 | K29: =44/3 -> 14.66666667 | L29: =44/4 -> 11
A30: Rock phosphate | C30: 30%*** | H30: very slow | I30: 24
A31: Sol-po-mag | D31: 0.22 | F31: 0.11 | G31: 0.22 | H31: rapid | I31: 16 | L31: =32/22 -> 1.454545455
A32: Soymeal | B32: 0.07 | C32: 0.02 | D32: 0.01 | F32: 0.03 | H32: slow/ med | I32: 17 | J32: =34/7 -> 4.857142857
A33: Super phosphate | C33: 0.45 | H33: rapid | I33: 3.5
A34: Triple superphosphate | C34: 0.46 | H34: rapid | I34: 9.5
A35: Urea | B35: 0.46 | H35: rapid | I35: 20 | J35: =40/46 -> 0.8695652174
A37: Blended Fertilizers
A38: Cheep cheep | B38: 0.04 | C38: 0.03 | D38: 0.03 | H38: med | I38: 22 | J38: =44/4 -> 11 | K38: =44/3 -> 14.66666667 | L38: =44/3 -> 14.66666667
A39: Custom 5-5-5 | B39: 0.05 | C39: 0.05 | D39: 0.05 | H39: med | I39: 25 | J39: =50/5 -> 10 | K39: =50/5 -> 10 | L39: =50/5 -> 10
A40: custom 6-0-6 | B40: 0.06 | D40: 0.06 | H40: med | I40: 28 | J40: =56/6 -> 9.333333333 | L40: =56/6 -> 9.333333333
A44: Bulk Materials
A45: Compost (mature) | B45: 0.01 | C45: 0.01 | D45: 0.01 | H45: med
A46: Manure (fresh) | H46: med
A47: Dairy | B47: 0.005 | C47: 0.002 | D47: 0.005 | H47: med
A48: Horse | B48: 0.005 | C48: 0.002 | D48: 0.005 | H48: med
A49: Sheep | B49: 0.01 | C49: 0.005 | D49: 0.01
A54: Blue shading indicates an organic material, but check with your certifying agency before using.
A55: **No more than 20% of a crop's annual N needs can be supplied by Chilean nitrate according to the NOP
A56: ***about 2% available
